Workbook

Sheet STARTNA LISTA 1 do 3
B1: STARTNA LISTA | F1: 2017-01-19 | K1: 2017-02-16
A2: UČENCI letnik 2008, 2009 in 2010 - 1., 2. in 3. razred
A3: Št. | B3: Ime in priimek | C3: Letnik | D3: Osnovna šola | E3: Dolžina skoka | F3: Odbitki doskoka
A4: 1 | B4: LENART TIŠLER | C4: 2008 | D4: TRŽIČ, LOM | H4: 1 | I4: LENART TIŠLER | J4: 2008 | K4: TRŽIČ, LOM
H5: 2 | I5: MARTIN REJC KOS | J5: 2008 | K5: TRŽIČ, LOM
A6: 3 | B6: GABER ČERNILEC | C6: 2008 | D6: TRŽIČ | H6: 3 | I6: GABER ČERNILEC | J6: 2008 | K6: TRŽIČ
A7: 4 | B7: JOŠT SOKLIČ | C7: 2009 | D7: TRŽIČ | H7: 4 | I7: JOŠT SOKLIČ | J7: 2009 | K7: TRŽIČ
A8: 5 | B8: JAN MEGLIČ | C8: 2008 | D8: TRŽIČ, POD. | H8: 5 | I8: JAN MEGLIČ | J8: 2008 | K8: TRŽIČ, POD.
H9: 6 | I9: ŽIGA KRALJ | J9: 2008 | K9: TRŽIČ, POD.
A10: 7 | B10: VAL VERŠNIK | C10: 2010 | D10: TRŽIČ, POD. | H10: 7 | I10: VAL VERŠNIK | J10: 2010 | K10: TRŽIČ, POD.
A11: 8 | B11: ŽAN BEGOVIČ | C11: 2008 | D11: BISTRICA | H11: 8 | I11: ŽAN BEGOVIČ | J11: 2008 | K11: BISTRICA
A12: 9 | B12: MATIC PREMRL | C12: 2008 | D12: BISTRICA | H12: 9 | I12: MATIC PREMRL | J12: 2008 | K12: BISTRICA
A13: 10 | B13: LUKA BEGOVIČ | C13: 2010 | D13: BISTRICA | H13: 10 | I13: LUKA BEGOVIČ | J13: 2010 | K13: BISTRICA
A14: 11 | B14: MATIC ALJANČIČ | C14: 2008 | D14: BISTRICA | H14: 11 | I14: MATIC ALJANČIČ | J14: 2008 | K14: BISTRICA
A15: 12 | B15: TIM ALJANČIČ | C15: 2009 | D15: BISTRICA | H15: 12 | I15: TIM ALJANČIČ | J15: 2009 | K15: BISTRICA
A16: 13 | B16: NEJC RIBIČ | C16: 2010 | D16: BISTRICA | H16: 13 | I16: NEJC RIBIČ | J16: 2010 | K16: BISTRICA
A17: 14 | B17: ROK GROS | C17: 2010 | D17: BISTRICA | H17: 14 | I17: ROK GROS | J17: 2010 | K17: BISTRICA
A18: 15 | B18: NEJC STRNAD PODLESNIK | C18: 2008 | D18: KRIŽE | H18: 15 | I18: NEJC STRNAD PODLESNIK | J18: 2008 | K18: KRIŽE
A19: 16 | B19: ANEJ TRATNIK PIRMAN | C19: 2008 | D19: KRIŽE | H19: 16
A20: 17 | B20: TIM POTOČNIK | C20: 2010 | D20: KRIŽE | H20: 17
A21: 18 | B21: TILEN POTOČNIK | C21: 2010 | D21: KRIŽE | H21: 18
A22: 19 | B22: ŽAK ŠVAB | C22: 2010 | D22: KRIŽE | H22: 19 | I22: ŽAK ŠVAB | J22: 2010 | K22: KRIŽE
A23: 20 | B23: JERNEJ KOŠIR | C23: 2009 | D23: KRIŽE | H23: 20
A24: 21 | B24: MATIC KALAN | C24: 2009 | D24: KRIŽE | H24: 21 | I24: MATIC KALAN | J24: 2009 | K24: KRIŽE
A25: 22 | B25: ČRT BEČAN | C25: 2008 | D25: KRIŽE | H25: 22 | I25: ČRT BEČAN | J25: 2008 | K25: KRIŽE
A26: 23 | B26: MATIC STEGNAR | C26: 2008 | D26: BISTRICA | H26: 23 | I26: MATIC STEGNAR | J26: 2008 | K26: BISTRICA | M26: MARK AHČIN | N26: 2008 | O26: KRIŽE
A27: 24 | B27: GAŠPER ZUPANC | C27: 2009 | D27: BISTRICA | H27: 24 | I27: GAŠPER ZUPANC | J27: 2009 | K27: BISTRICA
H28: 25 | I28: ROK BALKOVEC | J28: 2008 | K28: BISTRICA
H29: 26 | I29: LOVRO MIRT | J29: 2010 | K29: TRŽIČ
A30: 27 | B30: AMADEJ POLAJNAR | C30: 2008 | D30: KRIŽE | H30: 27 | I30: AMADEJ POLAJNAR | J30: 2008 | K30: KRIŽE
A39: UČENKE letnik 2008, 2009 in 2010 - 1., 2. in 3. razred
A40: 29 | B40: ULA BELHAR | C40: 2009 | D40: TRŽIČ | H40: 30 | I40: , | J40: 2009 | K40: TRŽIČ
A41: 31 | B41: TINKARA SOKLIČ | C41: 2010 | D41: TRŽIČ | H41: 31 | I41: TINKARA SOKLIČ | J41: 2010 | K41: TRŽIČ
A42: 32 | B42: ŽIVA MEGLIČ | C42: 2010 | D42: KRIŽE | H42: 32 | I42: ŽIVA MEGLIČ | J42: 2010 | K42: KRIŽE
A43: 33 | B43: ULA ŠVAB | C43: 2008 | D43: KRIŽE | H43: 33 | I43: ULA ŠVAB | J43: 2008 | K43: KRIŽE
A44: 34 | B44: ŽIVA DOLHAR | C44: 2010 | D44: TRŽIČ | H44: 34 | I44: ŽIVA DOLHAR | J44: 2010 | K44: TRŽIČ | M44: 34 | N44: KATARINA LANGUS | O44: 2008 | P44: KRIŽE
A45: 35 | B45: ULA PERKO | C45: 2008 | D45: KRIŽE | H45: 35 | I45: ULA PERKO | J45: 2008 | K45: KRIŽE
A46: 36 | B46: HANNA KAVČIČ | C46: 2009 | D46: BISTRICA | H46: 36
A47: 37 | B47: URŠA PREMRL | C47: 2010 | D47: BISTRICA | H47: 37 | I47: URŠA PREMRL | J47: 2010 | K47: BISTRICA
A48: 38 | B48: VITA MARKELJ | C48: 2008 | D48: KRIŽE | H48: 38 | I48: VITA MARKELJ | J48: 2008 | K48: KRIŽE
A49: 39 | B49: ZALA DOLHAR | C49: 2008 | D49: TRŽIČ | H49: 39 | I49: ZALA DOLHAR | J49: 2008 | K49: TRŽIČ

Sheet STARTNA LISTA 4 in 5
B1: STARTNA LISTA | F1: 2017-01-19 | K1: 2017-02-16
A2: UČENCI letnik 2006 in 2007 - 4. in 5. razred
A3: Št. | B3: Ime in priimek | C3: Letnik | D3: Osnovna šola | E3: Dolžina skoka | F3: Odbitki doskoka
A4: 80 | B4: OŽBEJ BELHAR | C4: 2007 | D4: TRŽIČ | H4: 40 | I4: OŽBEJ BELHAR | J4: 2007 | K4: TRŽIČ
A5: 41 | B5: KRISTJAN R.ZUPANČIČ | C5: 2007 | D5: TRŽIČ | H5: 41 | I5: KRISTJAN R.ZUPANČIČ | J5: 2007 | K5: TRŽIČ
A6: 42 | B6: ANEJ PAPLER | C6: 2006 | D6: TRŽIČ | H6: 42 | I6: ANEJ PAPLER | J6: 2006 | K6: TRŽIČ
A7: 83 | B7: VENO BAJAZET | C7: 2006 | D7: TRŽIČ | H7: 43 | I7: VENO BAJAZET | J7: 2006 | K7: TRŽIČ
A8: 44 | B8: ALEN HADŽIĆ | C8: 2006 | D8: TRŽIČ | H8: 44 | I8: ALEN HADŽIĆ | J8: 2006 | K8: TRŽIČ
A9: 45 | B9: MATIC SOKLIČ | C9: 2006 | D9: TRŽIČ | H9: 45 | I9: MATIC SOKLIČ | J9: 2006 | K9: TRŽIČ
A10: 46 | B10: MAJ SOKLIČ | C10: 2006 | D10: TRŽIČ | H10: 46 | I10: MAJ SOKLIČ | J10: 2006 | K10: TRŽIČ
A11: 47 | B11: MAJ FROLICH | C11: 2006 | D11: TRŽIČ, POD. | H11: 47 | I11: MAJ FROLICH | J11: 2006 | K11: TRŽIČ, POD.
H12: 48 | I12: VID KRALJ | J12: 2006 | K12: TRŽIČ, POD.
A13: 49 | B13: GAŠPER ČERNILEC | C13: 2007 | D13: TRŽIČ, POD. | H13: 49 | I13: GAŠPER ČERNILEC | J13: 2007 | K13: TRŽIČ, POD.
A14: 50 | B14: LOVRO GAL JANC | C14: 2007 | D14: TRŽIČ, POD. | H14: 50 | I14: LOVRO GAL JANC | J14: 2007 | K14: TRŽIČ, POD.
A15: 51 | B15: DAVID MEGLIČ | C15: 2007 | D15: BISTRICA | H15: 51 | I15: DAVID MEGLIČ | J15: 2007 | K15: BISTRICA
A16: 52 | B16: URH ŽOS | C16: 2007 | D16: BISTRICA | H16: 52 | I16: URH ŽOS | J16: 2007 | K16: BISTRICA
A17: 53 | B17: MATEVŽ GRAŠIČ | C17: 2007 | D17: KRIŽE | H17: 53 | I17: MATEVŽ GRAŠIČ | J17: 2007 | K17: KRIŽE
A18: 54 | B18: LUKA SKODLAR | C18: 2006 | D18: NAKLO POD. | H18: 54
A19: 55 | B19: AME KOZJEK | C19: 2006 | D19: NAKLO POD. | H19: 55
A20: 56 | B20: GAL MIHELIČ | C20: 2006 | D20: NAKLO POD. | H20: 56
A21: 57 | B21: URBAN KUKOVIČ | C21: 2006 | D21: BISTRICA | H21: 58 | I21: MARK AHČIN | J21: 2007 | K21: KRIŽE
A22: 58 | B22: MARK AHČIN | C22: 2007 | D22: KRIŽE
A31: UČENKE letnik 2006 in 2007 - 4. in 5. razred
A32: 60 | B32: AJDA JUGOVIC | C32: 2007 | D32: TRŽIČ | H32: 60 | I32: AJDA JUGOVIC | J32: 2007 | K32: TRŽIČ
A33: 61 | B33: SARA OBRADOVIČ | C33: 2007 | D33: TRŽIČ | H33: 61 | I33: SARA OBRADOVIČ | J33: 2007 | K33: TRŽIČ
A34: 62 | B34: ZOJA ŠORN VESEL | C34: 2007 | D34: TRŽIČ | H34: 62 | I34: ZOJA ŠORN VESEL | J34: 2007 | K34: TRŽIČ
A35: 63 | B35: BARBARA RIBIČ | C35: 2007 | D35: BISTRICA | H35: 63 | I35: BARBARA RIBIČ | J35: 2007 | K35: BISTRICA
A36: 64 | B36: NEŽA ROŽIČ | C36: 2007 | D36: BISTRICA | H36: 64 | I36: NEŽA ROŽIČ | J36: 2007 | K36: BISTRICA
A37: 65 | B37: NECA MEGLIČ | C37: 2007 | D37: KRIŽE | H37: 65 | I37: NECA MEGLIČ | J37: 2007 | K37: KRIŽE
A38: 66 | B38: LUCIJA DOVŽAN | C38: 2007 | D38: KRIŽE | H38: 66 | I38: LUCIJA DOVŽAN | J38: 2007 | K38: KRIŽE
H39: 67
A40: 68 | B40: ULLA KAVČIČ | C40: 2006 | D40: BISTRICA | H40: 68
A41: 69 | B41: EVA JERMAN | C41: 2007 | D41: BISTRICA | H41: 69 | I41: EVA JERMAN | J41: 2007 | K41: BISTRICA
A42: 70 | B42: ANA TIŠLER | C42: 2007 | D42: POŠ LOM | H42: 70 | I42: ANA TIŠLER | J42: 2007 | K42: POŠ LOM

Sheet 1. do 3. razred UČENCI
B1: = Izvedba 1. tekme | D1: Rezultati 1. tekme
B2: = Izvedba 2. tekme | D2: Rezultati 2. tekme
D3: Končni rezultati
C6: ORGANIZATOR NSK TRŽIČ FMG | K6: Vrednost dolžine skoka: | Q6: 1 m = 6 točk | Z6: Vrednost dolžine skoka: | AF6: 1 m = 6 točk
K7: Rezultat se ob podrsu zmanjša za: | Q7: 3 TOČKE | Z7: Rezultat se ob podrsu zmanjša za: | AF7: 3 TOČKE
A8: ODPRTO ŠOLSKO PRVENSTVO V SMUČARSKIH SKOKIH ZA ŠOLSKO LETO 2016/17 | K8: Rezultat se ob padcu zmanjša za: | Q8: 6 TOČK | Z8: Rezultat se ob padcu zmanjša za: | AF8: 6 TOČK
A9: V skupni seštevek se upoštevata točkovno najboljša dva skoka
A10: V primeru delitve mesta, se za razvrstitev šteje dolžina najdalšega skoka in nato še tisti skok, ki ni bil upoštevan v seštevek za končno število točk.
A12: REZULTATI | E12: Tržič 19.1.2017 | T12: Tržič 16.2.2017 | AI12: Tržič 19.1.2017 | AQ12: Tržič 16.2.2017
B13: DEČKI | D13: 1., 2., 3. RAZRED | E13: Dolžina skoka | H13: Odbitki doskoka | K13: Točk skok + doskok | O13: 1. | P13: 2. | Q13: Skupaj | R13: Št. | T13: Dolžina skoka | W13: Odbitki doskoka | Z13: Točk skok + doskok | AD13: 1. | AE13: 2. | AF13: Skupaj | AG13: Št. | AI13: Točk skok + doskok | AM13: 1. | AN13: 2. | AO13: Točk | AQ13: Točk skok + doskok | AU13: 1. | AV13: 2. | AW13: Točk | AY13: Naj | AZ13: Končno
A14: Mesto | B14: Ime in priimek | C14: Letnik | D14: Osnovna šola | E14: 1.SK. | F14: 2.SK. | G14: 3.SK. | H14: 1.SK. | I14: 2.SK. | J14: 3.SK. | K14: 1.SK. | L14: 2.SK. | M14: 3.SK. | O14: boljši | P14: boljši | Q14: št. točk | R14: štev. | T14: 1.SK. | U14: 2.SK. | V14: 3.SK. | W14: 1.SK. | X14: 2.SK. | Y14: 3.SK. | Z14: 1.SK. | AA14: 2.SK. | AB14: 3.SK. | AD14: boljši | AE14: boljši | AF14: št. točk | AG14: štev. | AI14: 1.SK. | AJ14: 2.SK. | AK14: 3.SK. | AM14: boljši | AN14: boljši | AO14: 19.01. | AQ14: 1.SK. | AR14: 2.SK. | AS14: 3.SK. | AU14: boljši | AV14: boljši | AW14: 16.02. | AY14: skok | AZ14: št. točk
A15: 1 | B15: ='STARTNA LISTA 1 do 3'!$B$7 -> JOŠT SOKLIČ | C15: ='STARTNA LISTA 1 do 3'!$C$7 -> 2009 | D15: ='STARTNA LISTA 1 do 3'!$D$7 -> TRŽIČ | E15: 3 | F15: 3.75 | G15: 3.75 | K15: =IF(E15>0,+E15*6-H15,"") -> 18 | L15: =IF(F15>0,+F15*6-I15,"") -> 22.5 | M15: =IF(G15>0,+G15*6-J15,"") -> 22.5 | N15: =SUM(K15:M15) -> 63 | O15: =IF(N15>0,LARGE(K15:M15,1),"") -> 22.5 | P15: =IF(N15>0,LARGE(K15:M15,2),"") -> 22.5 | Q15: =IF(N15>0,+O15+P15,0) -> 45 | R15: ='STARTNA LISTA 1 do 3'!$A$7 -> 4 | T15: 4.5 | U15: 4.5 | V15: 4.5 | Z15: =IF(T15>0,+T15*6-W15,"") -> 27 | AA15: =IF(U15>0,+U15*6-X15,"") -> 27 | AB15: =IF(V15>0,+V15*6-Y15,"") -> 27 | AC15: =SUM(Z15:AB15) -> 81 | AD15: =IF(AC15>0,LARGE(Z15:AB15,1),"") -> 27 | AE15: =IF(AC15>0,LARGE(Z15:AB15,2),"") -> 27 | AF15: =IF(AC15>0,+AD15+AE15,0) -> 54 | AG15: ='STARTNA LISTA 1 do 3'!$A$7 -> 4 | AI15: =IF(K15>0,K15,"") -> 18 | AJ15: =IF(L15>0,L15,"") -> 22.5 | AK15: =IF(M15>0,M15,"") -> 22.5 | AL15: =N15 -> 63 | AM15: =IF(O15>0,O15,"") -> 22.5 | AN15: =IF(P15>0,P15,"") -> 22.5 | AO15: =IF(Q15>0,Q15,"") -> 45 | AQ15: =IF(Z15>0,Z15,"") -> 27 | AR15: =IF(AA15>0,AA15,"") -> 27 | AS15: =IF(AB15>0,AB15,"") -> 27 | AT15: =AC15 -> 81 | AU15: =IF(AD15>0,AD15,"") -> 27 | AV15: =IF(AE15>0,AE15,"") -> 27 | AW15: =IF(AF15>0,AF15,"") -> 54 | AX15: =+N15+AC15 -> 144 | AY15: =IF((AL15+AT15)>0,MAX(AM15,AU15),"") -> 27 | AZ15: =(IF(AW15="",0,AW15)+IF(AO15="",0,AO15)) -> 99
A16: 2 | B16: ='STARTNA LISTA 1 do 3'!$B$14 -> MATIC ALJANČIČ | C16: ='STARTNA LISTA 1 do 3'!$C$14 -> 2008 | D16: ='STARTNA LISTA 1 do 3'!$D$14 -> BISTRICA | E16: 3.5 | F16: 3.75 | G16: 3.5 | H16: 3 | I16: 3 | K16: 18 | L16: 19.5 | M16: 21 | N16: 58.5 | O16: 21 | P16: 19.5 | Q16: 40.5 | R16: ='STARTNA LISTA 1 do 3'!$A$14 -> 11 | T16: 4.25 | U16: 4.25 | V16: 4 | Z16: 25.5 | AA16: 25.5 | AB16: 24 | AC16: 75 | AD16: 25.5 | AE16: 25.5 | AF16: 51 | AG16: ='STARTNA LISTA 1 do 3'!$A$14 -> 11 | AI16: 18 | AJ16: 19.5 | AK16: 21 | AL16: 58.5 | AM16: 21 | AN16: 19.5 | AO16: 40.5 | AQ16: 25.5 | AR16: 25.5 | AS16: 24 | AT16: 75 | AU16: 25.5 | AV16: 25.5 | AW16: 51 | AX16: 133.5 | AY16: 25.5 | AZ16: 91.5
A17: 3 | B17: ='STARTNA LISTA 1 do 3'!$B$12 -> MATIC PREMRL | C17: ='STARTNA LISTA 1 do 3'!$C$12 -> 2008 | D17: ='STARTNA LISTA 1 do 3'!$D$12 -> BISTRICA | E17: 3.25 | F17: 3.5 | G17: 3.5 | K17: 19.5 | L17: 21 | M17: 21 | N17: 61.5 | O17: 21 | P17: 21 | Q17: 42 | R17: ='STARTNA LISTA 1 do 3'!$A$12 -> 9 | T17: 4 | U17: 3.25 | V17: 4 | Z17: 24 | AA17: 19.5 | AB17: 24 | AC17: 67.5 | AD17: 24 | AE17: 24 | AF17: 48 | AG17: ='STARTNA LISTA 1 do 3'!$A$12 -> 9 | AI17: 19.5 | AJ17: 21 | AK17: 21 | AL17: 61.5 | AM17: 21 | AN17: 21 | AO17: 42 | AQ17: 24 | AR17: 19.5 | AS17: 24 | AT17: 67.5 | AU17: 24 | AV17: 24 | AW17: 48 | AX17: 129 | AY17: 24 | AZ17: 90
A18: 4 | B18: ='STARTNA LISTA 1 do 3'!$B$8 -> JAN MEGLIČ | C18: ='STARTNA LISTA 1 do 3'!$C$8 -> 2008 | D18: ='STARTNA LISTA 1 do 3'!$D$8 -> TRŽIČ, POD. | E18: 3 | F18: 3.25 | G18: 3.25 | K18: 18 | L18: 19.5 | M18: 19.5 | N18: 57 | O18: 19.5 | P18: 19.5 | Q18: 39 | R18: ='STARTNA LISTA 1 do 3'!$A$8 -> 5 | T18: 3.5 | U18: 4.25 | V18: 4 | Z18: 21 | AA18: 25.5 | AB18: 24 | AC18: 70.5 | AD18: 25.5 | AE18: 24 | AF18: 49.5 | AG18: ='STARTNA LISTA 1 do 3'!$A$8 -> 5 | AI18: 18 | AJ18: 19.5 | AK18: 19.5 | AL18: 57 | AM18: 19.5 | AN18: 19.5 | AO18: 39 | AQ18: 21 | AR18: 25.5 | AS18: 24 | AT18: 70.5 | AU18: 25.5 | AV18: 24 | AW18: 49.5 | AX18: 127.5 | AY18: 25.5 | AZ18: 88.5
A19: 5 | B19: ='STARTNA LISTA 1 do 3'!$B$24 -> MATIC KALAN | C19: ='STARTNA LISTA 1 do 3'!$C$24 -> 2009 | D19: ='STARTNA LISTA 1 do 3'!$D$24 -> KRIŽE | E19: 3 | F19: 3.25 | G19: 3.5 | K19: 18 | L19: 19.5 | M19: 21 | N19: 58.5 | O19: 21 | P19: 19.5 | Q19: 40.5 | R19: ='STARTNA LISTA 1 do 3'!$A$24 -> 21 | T19: 3.5 | U19: 3.75 | V19: 4 | Z19: 21 | AA19: 22.5 | AB19: 24 | AC19: 67.5 | AD19: 24 | AE19: 22.5 | AF19: 46.5 | AG19: ='STARTNA LISTA 1 do 3'!$A$24 -> 21 | AI19: 18 | AJ19: 19.5 | AK19: 21 | AL19: 58.5 | AM19: 21 | AN19: 19.5 | AO19: 40.5 | AQ19: 21 | AR19: 22.5 | AS19: 24 | AT19: 67.5 | AU19: 24 | AV19: 22.5 | AW19: 46.5 | AX19: 126 | AY19: 24 | AZ19: 87
A20: 6 | B20: ='STARTNA LISTA 1 do 3'!$B$6 -> GABER ČERNILEC | C20: ='STARTNA LISTA 1 do 3'!$C$6 -> 2008 | D20: ='STARTNA LISTA 1 do 3'!$D$6 -> TRŽIČ | E20: 3.25 | F20: 3.25 | G20: 3.25 | K20: 19.5 | L20: 19.5 | M20: 19.5 | N20: 58.5 | O20: 19.5 | P20: 19.5 | Q20: 39 | R20: ='STARTNA LISTA 1 do 3'!$A$6 -> 3 | T20: 3.25 | U20: 3.75 | V20: 3.75 | Z20: 19.5 | AA20: 22.5 | AB20: 22.5 | AC20: 64.5 | AD20: 22.5 | AE20: 22.5 | AF20: 45 | AG20: ='STARTNA LISTA 1 do 3'!$A$6 -> 3 | AI20: 19.5 | AJ20: 19.5 | AK20: 19.5 | AL20: 58.5 | AM20: 19.5 | AN20: 19.5 | AO20: 39 | AQ20: 19.5 | AR20: 22.5 | AS20: 22.5 | AT20: 64.5 | AU20: 22.5 | AV20: 22.5 | AW20: 45 | AX20: 123 | AY20: 22.5 | AZ20: 84
A21: 7 | B21: ='STARTNA LISTA 1 do 3'!$B$18 -> NEJC STRNAD PODLESNIK | C21: ='STARTNA LISTA 1 do 3'!$C$18 -> 2008 | D21: ='STARTNA LISTA 1 do 3'!$D$18 -> KRIŽE | E21: 2.75 | F21: 3.25 | G21: 2.75 | K21: 16.5 | L21: 19.5 | M21: 16.5 | N21: 52.5 | O21: 19.5 | P21: 16.5 | Q21: 36 | R21: ='STARTNA LISTA 1 do 3'!$A$18 -> 15 | T21: 3.5 | U21: 3.5 | V21: 4.25 | Z21: 21 | AA21: 21 | AB21: 25.5 | AC21: 67.5 | AD21: 25.5 | AE21: 21 | AF21: 46.5 | AG21: ='STARTNA LISTA 1 do 3'!$A$18 -> 15 | AI21: 16.5 | AJ21: 19.5 | AK21: 16.5 | AL21: 52.5 | AM21: 19.5 | AN21: 16.5 | AO21: 36 | AQ21: 21 | AR21: 21 | AS21: 25.5 | AT21: 67.5 | AU21: 25.5 | AV21: 21 | AW21: 46.5 | AX21: 120 | AY21: 25.5 | AZ21: 82.5
A22: 8 | B22: ='STARTNA LISTA 1 do 3'!$B$11 -> ŽAN BEGOVIČ | C22: ='STARTNA LISTA 1 do 3'!$C$11 -> 2008 | D22: ='STARTNA LISTA 1 do 3'!$D$11 -> BISTRICA | E22: 2 | F22: 3.25 | G22: 3.25 | K22: 12 | L22: 19.5 | M22: 19.5 | N22: 51 | O22: 19.5 | P22: 19.5 | Q22: 39 | R22: ='STARTNA LISTA 1 do 3'!$A$11 -> 8 | T22: 3.75 | U22: 3.5 | V22: 3.5 | Z22: 22.5 | AA22: 21 | AB22: 21 | AC22: 64.5 | AD22: 22.5 | AE22: 21 | AF22: 43.5 | AG22: ='STARTNA LISTA 1 do 3'!$A$11 -> 8 | AI22: 12 | AJ22: 19.5 | AK22: 19.5 | AL22: 51 | AM22: 19.5 | AN22: 19.5 | AO22: 39 | AQ22: 22.5 | AR22: 21 | AS22: 21 | AT22: 64.5 | AU22: 22.5 | AV22: 21 | AW22: 43.5 | AX22: 115.5 | AY22: 22.5 | AZ22: 82.5
A23: 9 | B23: ='STARTNA LISTA 1 do 3'!$B$4 -> LENART TIŠLER | C23: ='STARTNA LISTA 1 do 3'!$C$4 -> 2008 | D23: ='STARTNA LISTA 1 do 3'!$D$4 -> TRŽIČ, LOM | E23: 2.5 | F23: 2.75 | G23: 3 | K23: 15 | L23: 16.5 | M23: 18 | N23: 49.5 | O23: 18 | P23: 16.5 | Q23: 34.5 | R23: ='STARTNA LISTA 1 do 3'!$A$4 -> 1 | T23: 3.5 | U23: 3 | V23: 3.25 | Z23: 21 | AA23: 18 | AB23: 19.5 | AC23: 58.5 | AD23: 21 | AE23: 19.5 | AF23: 40.5 | AG23: ='STARTNA LISTA 1 do 3'!$A$4 -> 1 | AI23: 15 | AJ23: 16.5 | AK23: 18 | AL23: 49.5 | AM23: 18 | AN23: 16.5 | AO23: 34.5 | AQ23: 21 | AR23: 18 | AS23: 19.5 | AT23: 58.5 | AU23: 21 | AV23: 19.5 | AW23: 40.5 | AX23: 108 | AY23: 21 | AZ23: 75
A24: 10 | B24: ='STARTNA LISTA 1 do 3'!$B$15 -> TIM ALJANČIČ | C24: ='STARTNA LISTA 1 do 3'!$C$15 -> 2009 | D24: ='STARTNA LISTA 1 do 3'!$D$15 -> BISTRICA | E24: 2.5 | F24: 2.25 | G24: 3 | J24: 3 | K24: 15 | L24: 13.5 | M24: 15 | N24: 43.5 | O24: 15 | P24: 15 | Q24: 30 | R24: ='STARTNA LISTA 1 do 3'!$A$15 -> 12 | T24: 3.25 | U24: 3.5 | V24: 3.75 | Z24: 19.5 | AA24: 21 | AB24: 22.5 | AC24: 63 | AD24: 22.5 | AE24: 21 | AF24: 43.5 | AG24: ='STARTNA LISTA 1 do 3'!$A$15 -> 12 | AI24: 15 | AJ24: 13.5 | AK24: 15 | AL24: 43.5 | AM24: 15 | AN24: 15 | AO24: 30 | AQ24: 19.5 | AR24: 21 | AS24: 22.5 | AT24: 63 | AU24: 22.5 | AV24: 21 | AW24: 43.5 | AX24: 106.5 | AY24: 22.5 | AZ24: 73.5
A25: 11 | B25: ='STARTNA LISTA 1 do 3'!$B$16 -> NEJC RIBIČ | C25: ='STARTNA LISTA 1 do 3'!$C$16 -> 2010 | D25: ='STARTNA LISTA 1 do 3'!$D$16 -> BISTRICA | E25: 2 | F25: 2 | G25: 2 | H25: 3 | I25: 6 | K25: 9 | L25: 6 | M25: 12 | N25: 27 | O25: 12 | P25: 9 | Q25: 21 | R25: ='STARTNA LISTA 1 do 3'!$A$16 -> 13 | T25: 2.25 | U25: 2.5 | V25: 3.25 | Z25: 13.5 | AA25: 15 | AB25: 19.5 | AC25: 48 | AD25: 19.5 | AE25: 15 | AF25: 34.5 | AG25: ='STARTNA LISTA 1 do 3'!$A$16 -> 13 | AI25: 9 | AJ25: 6 | AK25: 12 | AL25: 27 | AM25: 12 | AN25: 9 | AO25: 21 | AQ25: 13.5 | AR25: 15 | AS25: 19.5 | AT25: 48 | AU25: 19.5 | AV25: 15 | AW25: 34.5 | AX25: 75 | AY25: 19.5 | AZ25: 55.5
A26: 12 | B26: ='STARTNA LISTA 1 do 3'!$B$25 -> ČRT BEČAN | C26: ='STARTNA LISTA 1 do 3'!$C$25 -> 2008 | D26: ='STARTNA LISTA 1 do 3'!$D$25 -> KRIŽE | N26: 0 | Q26: 0 | R26: ='STARTNA LISTA 1 do 3'!$A$25 -> 22 | T26: 3.5 | U26: 4.25 | V26: 4.25 | Z26: 21 | AA26: 25.5 | AB26: 25.5 | AC26: 72 | AD26: 25.5 | AE26: 25.5 | AF26: 51 | AG26: ='STARTNA LISTA 1 do 3'!$A$25 -> 22 | AL26: 0 | AQ26: 21 | AR26: 25.5 | AS26: 25.5 | AT26: 72 | AU26: 25.5 | AV26: 25.5 | AW26: 51 | AX26: 72 | AY26: 25.5 | AZ26: 51
A27: 13 | B27: ='STARTNA LISTA 1 do 3'!$B$26 -> MATIC STEGNAR | C27: ='STARTNA LISTA 1 do 3'!$C$26 -> 2008 | D27: ='STARTNA LISTA 1 do 3'!$D$26 -> BISTRICA | N27: 0 | Q27: 0 | R27: ='STARTNA LISTA 1 do 3'!$A$26 -> 23 | T27: 3.5 | U27: 4.25 | V27: 4.25 | Z27: 21 | AA27: 25.5 | AB27: 25.5 | AC27: 72 | AD27: 25.5 | AE27: 25.5 | AF27: 51 | AG27: ='STARTNA LISTA 1 do 3'!$A$26 -> 23 | AL27: 0 | AQ27: 21 | AR27: 25.5 | AS27: 25.5 | AT27: 72 | AU27: 25.5 | AV27: 25.5 | AW27: 51 | AX27: 72 | AY27: 25.5 | AZ27: 51
A28: 14 | B28: ='STARTNA LISTA 1 do 3'!$B$19 -> ANEJ TRATNIK PIRMAN | C28: ='STARTNA LISTA 1 do 3'!$C$19 -> 2008 | D28: ='STARTNA LISTA 1 do 3'!$D$19 -> KRIŽE | E28: 3.25 | F28: 3.5 | G28: 3.5 | I28: 3 | J28: 6 | K28: 19.5 | L28: 18 | M28: 15 | N28: 52.5 | O28: 19.5 | P28: 18 | Q28: 37.5 | R28: ='STARTNA LISTA 1 do 3'!$A$19 -> 16 | AC28: 0 | AF28: 0 | AG28: ='STARTNA LISTA 1 do 3'!$A$19 -> 16 | AI28: 19.5 | AJ28: 18 | AK28: 15 | AL28: 52.5 | AM28: 19.5 | AN28: 18 | AO28: 37.5 | AT28: 0 | AX28: 52.5 | AY28: 19.5 | AZ28: 37.5
A29: 15 | B29: ='STARTNA LISTA 1 do 3'!$B$27 -> GAŠPER ZUPANC | C29: ='STARTNA LISTA 1 do 3'!$C$27 -> 2009 | D29: ='STARTNA LISTA 1 do 3'!$D$27 -> BISTRICA | N29: 0 | Q29: 0 | R29: ='STARTNA LISTA 1 do 3'!$A$27 -> 24 | T29: 2.5 | U29: 2.5 | V29: 3 | Z29: 15 | AA29: 15 | AB29: 18 | AC29: 48 | AD29: 18 | AE29: 15 | AF29: 33 | AG29: ='STARTNA LISTA 1 do 3'!$A$27 -> 24 | AL29: 0 | AQ29: 15 | AR29: 15 | AS29: 18 | AT29: 48 | AU29: 18 | AV29: 15 | AW29: 33 | AX29: 48 | AY29: 18 | AZ29: 33
A30: 16 | B30: ='STARTNA LISTA 1 do 3'!$B$21 -> TILEN POTOČNIK | C30: ='STARTNA LISTA 1 do 3'!$C$21 -> 2010 | D30: ='STARTNA LISTA 1 do 3'!$D$21 -> KRIŽE | E30: 2.75 | F30: 2.75 | G30: 2.25 | K30: 16.5 | L30: 16.5 | M30: 13.5 | N30: 46.5 | O30: 16.5 | P30: 16.5 | Q30: 33 | R30: ='STARTNA LISTA 1 do 3'!$A$21 -> 18 | AC30: 0 | AF30: 0 | AG30: ='STARTNA LISTA 1 do 3'!$A$21 -> 18 | AI30: 16.5 | AJ30: 16.5 | AK30: 13.5 | AL30: 46.5 | AM30: 16.5 | AN30: 16.5 | AO30: 33 | AT30: 0 | AX30: 46.5 | AY30: 16.5 | AZ30: 33
A31: 17 | B31: ='STARTNA LISTA 1 do 3'!$B$13 -> LUKA BEGOVIČ | C31: ='STARTNA LISTA 1 do 3'!$C$13 -> 2010 | D31: ='STARTNA LISTA 1 do 3'!$D$13 -> BISTRICA | N31: 0 | Q31: 0 | R31: ='STARTNA LISTA 1 do 3'!$A$13 -> 10 | T31: 2 | U31: 2 | V31: 2.5 | Z31: 12 | AA31: 12 | AB31: 15 | AC31: 39 | AD31: 15 | AE31: 12 | AF31: 27 | AG31: ='STARTNA LISTA 1 do 3'!$A$13 -> 10 | AL31: 0 | AQ31: 12 | AR31: 12 | AS31: 15 | AT31: 39 | AU31: 15 | AV31: 12 | AW31: 27 | AX31: 39 | AY31: 15 | AZ31: 27
A32: 18 | B32: ='STARTNA LISTA 1 do 3'!$B$30 -> AMADEJ POLAJNAR | C32: ='STARTNA LISTA 1 do 3'!$C$30 -> 2008 | D32: ='STARTNA LISTA 1 do 3'!$D$30 -> KRIŽE | N32: 0 | Q32: 0 | R32: ='STARTNA LISTA 1 do 3'!$A$30 -> 27 | T32: 2 | U32: 2 | V32: 2.25 | Z32: 12 | AA32: 12 | AB32: 13.5 | AC32: 37.5 | AD32: 13.5 | AE32: 12 | AF32: 25.5 | AG32: ='STARTNA LISTA 1 do 3'!$A$30 -> 27 | AL32: 0 | AQ32: 12 | AR32: 12 | AS32: 13.5 | AT32: 37.5 | AU32: 13.5 | AV32: 12 | AW32: 25.5 | AX32: 37.5 | AY32: 13.5 | AZ32: 25.5
A33: 19 | B33: ='STARTNA LISTA 1 do 3'!$B$22 -> ŽAK ŠVAB | C33: ='STARTNA LISTA 1 do 3'!$C$22 -> 2010 | D33: ='STARTNA LISTA 1 do 3'!$D$22 -> KRIŽE | E33: 1.75 | F33: 2 | G33: 2.25 | K33: 10.5 | L33: 12 | M33: 13.5 | N33: 36 | O33: 13.5 | P33: 12 | Q33: 25.5 | R33: ='STARTNA LISTA 1 do 3'!$A$22 -> 19 | AC33: 0 | AF33: 0 | AG33: ='STARTNA LISTA 1 do 3'!$A$22 -> 19 | AI33: 10.5 | AJ33: 12 | AK33: 13.5 | AL33: 36 | AM33: 13.5 | AN33: 12 | AO33: 25.5 | AT33: 0 | AX33: 36 | AY33: 13.5 | AZ33: 25.5
A34: 20 | B34: ='STARTNA LISTA 1 do 3'!$B$23 -> JERNEJ KOŠIR | C34: ='STARTNA LISTA 1 do 3'!$C$23 -> 2009 | D34: ='STARTNA LISTA 1 do 3'!$D$23 -> KRIŽE | E34: 2.25 | F34: 2.25 | G34: 2 | H34: 3 | K34: 10.5 | L34: 13.5 | M34: 12 | N34: 36 | O34: 13.5 | P34: 12 | Q34: 25.5 | R34: ='STARTNA LISTA 1 do 3'!$A$23 -> 20 | AC34: 0 | AF34: 0 | AG34: ='STARTNA LISTA 1 do 3'!$A$23 -> 20 | AI34: 10.5 | AJ34: 13.5 | AK34: 12 | AL34: 36 | AM34: 13.5 | AN34: 12 | AO34: 25.5 | AT34: 0 | AX34: 36 | AY34: 13.5 | AZ34: 25.5
A35: 21 | B35: ='STARTNA LISTA 1 do 3'!$B$10 -> VAL VERŠNIK | C35: ='STARTNA LISTA 1 do 3'!$C$10 -> 2010 | D35: ='STARTNA LISTA 1 do 3'!$D$10 -> TRŽIČ, POD. | E35: 2.5 | F35: 2.5 | G35: 2 | H35: 6 | J35: 3 | K35: 9 | L35: 15 | M35: 9 | N35: 33 | O35: 15 | P35: 9 | Q35: 24 | R35: ='STARTNA LISTA 1 do 3'!$A$10 -> 7 | AC35: 0 | AF35: 0 | AG35: ='STARTNA LISTA 1 do 3'!$A$10 -> 7 | AI35: 9 | AJ35: 15 | AK35: 9 | AL35: 33 | AM35: 15 | AN35: 9 | AO35: 24 | AT35: 0 | AX35: 33 | AY35: 15 | AZ35: 24
A36: 22 | B36: ='STARTNA LISTA 1 do 3'!$B$17 -> ROK GROS | C36: ='STARTNA LISTA 1 do 3'!$C$17 -> 2010 | D36: ='STARTNA LISTA 1 do 3'!$D$17 -> BISTRICA | E36: 1.75 | F36: 1.75 | G36: 2.25 | K36: 10.5 | L36: 10.5 | M36: 13.5 | N36: 34.5 | O36: 13.5 | P36: 10.5 | Q36: 24 | R36: ='STARTNA LISTA 1 do 3'!$A$17 -> 14 | AC36: 0 | AF36: 0 | AG36: ='STARTNA LISTA 1 do 3'!$A$17 -> 14 | AI36: 10.5 | AJ36: 10.5 | AK36: 13.5 | AL36: 34.5 | AM36: 13.5 | AN36: 10.5 | AO36: 24 | AT36: 0 | AX36: 34.5 | AY36: 13.5 | AZ36: 24
A37: 23 | B37: ='STARTNA LISTA 1 do 3'!$B$20 -> TIM POTOČNIK | C37: ='STARTNA LISTA 1 do 3'!$C$20 -> 2010 | D37: ='STARTNA LISTA 1 do 3'!$D$20 -> KRIŽE | E37: 2 | F37: 2 | G37: 3 | H37: 3 | I37: 3 | J37: 6 | K37: 9 | L37: 9 | M37: 12 | N37: 30 | O37: 12 | P37: 9 | Q37: 21 | R37: ='STARTNA LISTA 1 do 3'!$A$20 -> 17 | AC37: 0 | AF37: 0 | AG37: ='STARTNA LISTA 1 do 3'!$A$20 -> 17 | AI37: 9 | AJ37: 9 | AK37: 12 | AL37: 30 | AM37: 12 | AN37: 9 | AO37: 21 | AT37: 0 | AX37: 30 | AY37: 12 | AZ37: 21
A38: 24 | B38: ='STARTNA LISTA 1 do 3'!$B$5 ->  | C38: ='STARTNA LISTA 1 do 3'!$C$5 ->  | D38: ='STARTNA LISTA 1 do 3'!$D$5 ->  | N38: 0 | Q38: 0 | R38: ='STARTNA LISTA 1 do 3'!$A$5 ->  | AC38: 0 | AF38: 0 | AG38: ='STARTNA LISTA 1 do 3'!$A$5 ->  | AL38: 0 | AT38: 0 | AX38: 0 | AZ38: 0
A39: 25 | B39: ='STARTNA LISTA 1 do 3'!$B$9 ->  | C39: ='STARTNA LISTA 1 do 3'!$C$9 ->  | D39: ='STARTNA LISTA 1 do 3'!$D$9 ->  | N39: 0 | Q39: 0 | R39: ='STARTNA LISTA 1 do 3'!$A$9 ->  | AC39: 0 | AF39: 0 | AG39: ='STARTNA LISTA 1 do 3'!$A$9 ->  | AL39: 0 | AT39: 0 | AX39: 0 | AZ39: 0
A40: 26 | B40: ='STARTNA LISTA 1 do 3'!$B$28 ->  | C40: ='STARTNA LISTA 1 do 3'!$C$28 ->  | D40: ='STARTNA LISTA 1 do 3'!$D$28 ->  | N40: 0 | Q40: 0 | R40: ='STARTNA LISTA 1 do 3'!$A$28 ->  | AC40: 0 | AF40: 0 | AG40: ='STARTNA LISTA 1 do 3'!$A$28 ->  | AL40: 0 | AT40: 0 | AX40: 0 | AZ40: 0
A41: 27 | B41: ='STARTNA LISTA 1 do 3'!$B$29 ->  | C41: ='STARTNA LISTA 1 do 3'!$C$29 ->  | D41: ='STARTNA LISTA 1 do 3'!$D$29 ->  | N41: 0 | Q41: 0 | R41: ='STARTNA LISTA 1 do 3'!$A$29 ->  | AC41: 0 | AF41: 0 | AG41: ='STARTNA LISTA 1 do 3'!$A$29 ->  | AL41: 0 | AT41: 0 | AX41: 0 | AZ41: 0
A42: 28 | B42: ='STARTNA LISTA 1 do 3'!$B$31 ->  | C42: ='STARTNA LISTA 1 do 3'!$C$31 ->  | D42: ='STARTNA LISTA 1 do 3'!$D$31 ->  | N42: 0 | Q42: 0 | R42: ='STARTNA LISTA 1 do 3'!$A$31 ->  | AC42: 0 | AF42: 0 | AG42: ='STARTNA LISTA 1 do 3'!$A$31 ->  | AL42: 0 | AT42: 0 | AX42: 0 | AZ42: 0
A43: 29 | B43: ='STARTNA LISTA 1 do 3'!$B$32 ->  | C43: ='STARTNA LISTA 1 do 3'!$C$32 ->  | D43: ='STARTNA LISTA 1 do 3'!$D$32 ->  | N43: 0 | Q43: 0 | R43: ='STARTNA LISTA 1 do 3'!$A$32 ->  | AC43: 0 | AF43: 0 | AG43: ='STARTNA LISTA 1 do 3'!$A$32 ->  | AL43: 0 | AT43: 0 | AX43: 0 | AZ43: 0

Sheet 1. do 3. razred UČENKE
B1: = Izvedba 1. tekme | D1: Rezultati 1. tekme
B2: = Izvedba 2. tekme | D2: Rezultati 2. tekme
D3: Končni rezultati
C6: ORGANIZATOR NSK TRŽIČ FMG | K6: Vrednost dolžine skoka: | Q6: 1 m = 6 točk | Z6: Vrednost dolžine skoka: | AF6: 1 m = 6 točk
K7: Rezultat se ob podrsu zmanjša za: | Q7: 3 TOČKE | Z7: Rezultat se ob podrsu zmanjša za: | AF7: 3 TOČKE
A8: ODPRTO ŠOLSKO PRVENSTVO V SMUČARSKIH SKOKIH ZA ŠOLSKO LETO 2016/17 | K8: Rezultat se ob padcu zmanjša za: | Q8: 6 TOČK | Z8: Rezultat se ob padcu zmanjša za: | AF8: 6 TOČK
A9: V skupni seštevek se upoštevata točkovno najboljša dva skoka
A10: V primeru delitve mesta, se za razvrstitev šteje dolžina najdalšega skoka in nato še tisti skok, ki ni bil upoštevan v seštevek za končno število točk.
A12: REZULTATI | E12: Tržič 19.1.2017 | T12: Tržič 16.2.2017 | AI12: Tržič 19.1.2017 | AQ12: Tržič 16.2.2017
B13: DEKLICE | D13: 1., 2., 3. RAZRED | E13: Dolžina skoka | H13: Odbitki doskoka | K13: Točk skok + doskok | O13: 1. | P13: 2. | Q13: Skupaj | R13: Št. | T13: Dolžina skoka | W13: Odbitki doskoka | Z13: Točk skok + doskok | AD13: 1. | AE13: 2. | AF13: Skupaj | AG13: Št. | AI13: Točk skok + doskok | AM13: 1. | AN13: 2. | AO13: Točk | AQ13: Točk skok + doskok | AU13: 1. | AV13: 2. | AW13: Točk | AY13: Naj | AZ13: Končno
A14: Mesto | B14: Ime in priimek | C14: Letnik | D14: Osnovna šola | E14: 1.SK. | F14: 2.SK. | G14: 3.SK. | H14: 1.SK. | I14: 2.SK. | J14: 3.SK. | K14: 1.SK. | L14: 2.SK. | M14: 3.SK. | O14: boljši | P14: boljši | Q14: št. točk | R14: štev. | T14: 1.SK. | U14: 2.SK. | V14: 3.SK. | W14: 1.SK. | X14: 2.SK. | Y14: 3.SK. | Z14: 1.SK. | AA14: 2.SK. | AB14: 3.SK. | AD14: boljši | AE14: boljši | AF14: št. točk | AG14: štev. | AI14: 1.SK. | AJ14: 2.SK. | AK14: 3.SK. | AM14: boljši | AN14: boljši | AO14: 19.01. | AQ14: 1.SK. | AR14: 2.SK. | AS14: 3.SK. | AU14: boljši | AV14: boljši | AW14: 16.02. | AY14: skok | AZ14: št. točk
A15: 1 | B15: ='STARTNA LISTA 1 do 3'!$B$43 -> ULA ŠVAB | C15: ='STARTNA LISTA 1 do 3'!$C$43 -> 2008 | D15: ='STARTNA LISTA 1 do 3'!$D$43 -> KRIŽE | E15: 3 | F15: 2.5 | G15: 3 | K15: =IF(E15>0,+E15*6-H15,"") -> 18 | L15: =IF(F15>0,+F15*6-I15,"") -> 15 | M15: =IF(G15>0,+G15*6-J15,"") -> 18 | N15: =SUM(K15:M15) -> 51 | O15: =IF(N15>0,LARGE(K15:M15,1),"") -> 18 | P15: =IF(N15>0,LARGE(K15:M15,2),"") -> 18 | Q15: =IF(N15>0,+O15+P15,0) -> 36 | R15: ='STARTNA LISTA 1 do 3'!$A$43 -> 33 | T15: 3.25 | U15: 4 | V15: 3.75 | Z15: =IF(T15>0,+T15*6-W15,"") -> 19.5 | AA15: =IF(U15>0,+U15*6-X15,"") -> 24 | AB15: =IF(V15>0,+V15*6-Y15,"") -> 22.5 | AC15: =SUM(Z15:AB15) -> 66 | AD15: =IF(AC15>0,LARGE(Z15:AB15,1),"") -> 24 | AE15: =IF(AC15>0,LARGE(Z15:AB15,2),"") -> 22.5 | AF15: =IF(AC15>0,+AD15+AE15,0) -> 46.5 | AG15: ='STARTNA LISTA 1 do 3'!$A$43 -> 33 | AI15: =IF(K15>0,K15,"") -> 18 | AJ15: =IF(L15>0,L15,"") -> 15 | AK15: =IF(M15>0,M15,"") -> 18 | AL15: =N15 -> 51 | AM15: =IF(O15>0,O15,"") -> 18 | AN15: =IF(P15>0,P15,"") -> 18 | AO15: =IF(Q15>0,Q15,"") -> 36 | AQ15: =IF(Z15>0,Z15,"") -> 19.5 | AR15: =IF(AA15>0,AA15,"") -> 24 | AS15: =IF(AB15>0,AB15,"") -> 22.5 | AT15: =AC15 -> 66 | AU15: =IF(AD15>0,AD15,"") -> 24 | AV15: =IF(AE15>0,AE15,"") -> 22.5 | AW15: =IF(AF15>0,AF15,"") -> 46.5 | AX15: =+N15+AC15 -> 117 | AY15: =IF((AL15+AT15)>0,MAX(AM15,AU15),"") -> 24 | AZ15: =(IF(AW15="",0,AW15)+IF(AO15="",0,AO15)) -> 82.5
A16: 2 | B16: ='STARTNA LISTA 1 do 3'!$B$46 -> HANNA KAVČIČ | C16: ='STARTNA LISTA 1 do 3'!$C$46 -> 2009 | D16: ='STARTNA LISTA 1 do 3'!$D$46 -> BISTRICA | E16: 2.5 | F16: 3 | G16: 3 | K16: 15 | L16: 18 | M16: 18 | N16: 51 | O16: 18 | P16: 18 | Q16: 36 | R16: ='STARTNA LISTA 1 do 3'!$A$46 -> 36 | T16: 3.5 | U16: 3.75 | V16: 3.5 | Z16: 21 | AA16: 22.5 | AB16: 21 | AC16: 64.5 | AD16: 22.5 | AE16: 21 | AF16: 43.5 | AG16: ='STARTNA LISTA 1 do 3'!$A$46 -> 36 | AI16: 15 | AJ16: 18 | AK16: 18 | AL16: 51 | AM16: 18 | AN16: 18 | AO16: 36 | AQ16: 21 | AR16: 22.5 | AS16: 21 | AT16: 64.5 | AU16: 22.5 | AV16: 21 | AW16: 43.5 | AX16: 115.5 | AY16: 22.5 | AZ16: 79.5
A17: 3 | B17: ='STARTNA LISTA 1 do 3'!$B$40 -> ULA BELHAR | C17: ='STARTNA LISTA 1 do 3'!$C$40 -> 2009 | D17: ='STARTNA LISTA 1 do 3'!$D$40 -> TRŽIČ | E17: 2 | F17: 2.75 | G17: 3 | K17: 12 | L17: 16.5 | M17: 18 | N17: 46.5 | O17: 18 | P17: 16.5 | Q17: 34.5 | R17: ='STARTNA LISTA 1 do 3'!$A$40 -> 29 | T17: 3.5 | U17: 3.75 | V17: 3 | Z17: 21 | AA17: 22.5 | AB17: 18 | AC17: 61.5 | AD17: 22.5 | AE17: 21 | AF17: 43.5 | AG17: ='STARTNA LISTA 1 do 3'!$A$40 -> 29 | AI17: 12 | AJ17: 16.5 | AK17: 18 | AL17: 46.5 | AM17: 18 | AN17: 16.5 | AO17: 34.5 | AQ17: 21 | AR17: 22.5 | AS17: 18 | AT17: 61.5 | AU17: 22.5 | AV17: 21 | AW17: 43.5 | AX17: 108 | AY17: 22.5 | AZ17: 78
A18: 4 | B18: ='STARTNA LISTA 1 do 3'!$B$45 -> ULA PERKO | C18: ='STARTNA LISTA 1 do 3'!$C$45 -> 2008 | D18: ='STARTNA LISTA 1 do 3'!$D$45 -> KRIŽE | E18: 2.5 | F18: 2.75 | G18: 3.25 | K18: 15 | L18: 16.5 | M18: 19.5 | N18: 51 | O18: 19.5 | P18: 16.5 | Q18: 36 | R18: ='STARTNA LISTA 1 do 3'!$A$45 -> 35 | T18: 3.25 | U18: 3.5 | V18: 3.5 | Z18: 19.5 | AA18: 21 | AB18: 21 | AC18: 61.5 | AD18: 21 | AE18: 21 | AF18: 42 | AG18: ='STARTNA LISTA 1 do 3'!$A$45 -> 35 | AI18: 15 | AJ18: 16.5 | AK18: 19.5 | AL18: 51 | AM18: 19.5 | AN18: 16.5 | AO18: 36 | AQ18: 19.5 | AR18: 21 | AS18: 21 | AT18: 61.5 | AU18: 21 | AV18: 21 | AW18: 42 | AX18: 112.5 | AY18: 21 | AZ18: 78
A19: 5 | B19: ='STARTNA LISTA 1 do 3'!$B$41 -> TINKARA SOKLIČ | C19: ='STARTNA LISTA 1 do 3'!$C$41 -> 2010 | D19: ='STARTNA LISTA 1 do 3'!$D$41 -> TRŽIČ | E19: 2.25 | F19: 2 | G19: 2.5 | K19: 13.5 | L19: 12 | M19: 15 | N19: 40.5 | O19: 15 | P19: 13.5 | Q19: 28.5 | R19: ='STARTNA LISTA 1 do 3'!$A$41 -> 31 | T19: 2.25 | U19: 2.75 | V19: 2.5 | Z19: 13.5 | AA19: 16.5 | AB19: 15 | AC19: 45 | AD19: 16.5 | AE19: 15 | AF19: 31.5 | AG19: ='STARTNA LISTA 1 do 3'!$A$41 -> 31 | AI19: 13.5 | AJ19: 12 | AK19: 15 | AL19: 40.5 | AM19: 15 | AN19: 13.5 | AO19: 28.5 | AQ19: 13.5 | AR19: 16.5 | AS19: 15 | AT19: 45 | AU19: 16.5 | AV19: 15 | AW19: 31.5 | AX19: 85.5 | AY19: 16.5 | AZ19: 60
A20: 6 | B20: ='STARTNA LISTA 1 do 3'!$B$42 -> ŽIVA MEGLIČ | C20: ='STARTNA LISTA 1 do 3'!$C$42 -> 2010 | D20: ='STARTNA LISTA 1 do 3'!$D$42 -> KRIŽE | E20: 3 | F20: 2.75 | G20: 3 | K20: 18 | L20: 16.5 | M20: 18 | N20: 52.5 | O20: 18 | P20: 18 | Q20: 36 | R20: ='STARTNA LISTA 1 do 3'!$A$42 -> 32 | AC20: 0 | AF20: 0 | AG20: ='STARTNA LISTA 1 do 3'!$A$42 -> 32 | AI20: 18 | AJ20: 16.5 | AK20: 18 | AL20: 52.5 | AM20: 18 | AN20: 18 | AO20: 36 | AT20: 0 | AX20: 52.5 | AY20: 18 | AZ20: 36
A21: 7 | B21: ='STARTNA LISTA 1 do 3'!$B$49 -> ZALA DOLHAR | C21: ='STARTNA LISTA 1 do 3'!$C$49 -> 2008 | D21: ='STARTNA LISTA 1 do 3'!$D$49 -> TRŽIČ | N21: 0 | Q21: 0 | R21: ='STARTNA LISTA 1 do 3'!$A$49 -> 39 | T21: 3 | U21: 2.75 | V21: 2.75 | Z21: 18 | AA21: 16.5 | AB21: 16.5 | AC21: 51 | AD21: 18 | AE21: 16.5 | AF21: 34.5 | AG21: ='STARTNA LISTA 1 do 3'!$A$49 -> 39 | AL21: 0 | AQ21: 18 | AR21: 16.5 | AS21: 16.5 | AT21: 51 | AU21: 18 | AV21: 16.5 | AW21: 34.5 | AX21: 51 | AY21: 18 | AZ21: 34.5
A22: 8 | B22: ='STARTNA LISTA 1 do 3'!$B$48 -> VITA MARKELJ | C22: ='STARTNA LISTA 1 do 3'!$C$48 -> 2008 | D22: ='STARTNA LISTA 1 do 3'!$D$48 -> KRIŽE | N22: 0 | Q22: 0 | R22: ='STARTNA LISTA 1 do 3'!$A$48 -> 38 | T22: 2.75 | U22: 2.75 | V22: 2.75 | Z22: 16.5 | AA22: 16.5 | AB22: 16.5 | AC22: 49.5 | AD22: 16.5 | AE22: 16.5 | AF22: 33 | AG22: ='STARTNA LISTA 1 do 3'!$A$48 -> 38 | AL22: 0 | AQ22: 16.5 | AR22: 16.5 | AS22: 16.5 | AT22: 49.5 | AU22: 16.5 | AV22: 16.5 | AW22: 33 | AX22: 49.5 | AY22: 16.5 | AZ22: 33
A23: 9 | B23: ='STARTNA LISTA 1 do 3'!$B$47 -> URŠA PREMRL | C23: ='STARTNA LISTA 1 do 3'!$C$47 -> 2010 | D23: ='STARTNA LISTA 1 do 3'!$D$47 -> BISTRICA | N23: 0 | Q23: 0 | R23: ='STARTNA LISTA 1 do 3'!$A$47 -> 37 | T23: 2.5 | U23: 2.25 | V23: 2.25 | Z23: 15 | AA23: 13.5 | AB23: 13.5 | AC23: 42 | AD23: 15 | AE23: 13.5 | AF23: 28.5 | AG23: ='STARTNA LISTA 1 do 3'!$A$47 -> 37 | AL23: 0 | AQ23: 15 | AR23: 13.5 | AS23: 13.5 | AT23: 42 | AU23: 15 | AV23: 13.5 | AW23: 28.5 | AX23: 42 | AY23: 15 | AZ23: 28.5
A24: 10 | B24: ='STARTNA LISTA 1 do 3'!$B$44 -> ŽIVA DOLHAR | C24: ='STARTNA LISTA 1 do 3'!$C$44 -> 2010 | D24: ='STARTNA LISTA 1 do 3'!$D$44 -> TRŽIČ | N24: 0 | Q24: 0 | R24: ='STARTNA LISTA 1 do 3'!$A$44 -> 34 | T24: 2 | U24: 2 | V24: 2 | Z24: 12 | AA24: 12 | AB24: 12 | AC24: 36 | AD24: 12 | AE24: 12 | AF24: 24 | AG24: ='STARTNA LISTA 1 do 3'!$A$44 -> 34 | AL24: 0 | AQ24: 12 | AR24: 12 | AS24: 12 | AT24: 36 | AU24: 12 | AV24: 12 | AW24: 24 | AX24: 36 | AY24: 12 | AZ24: 24

Sheet 4. in 5. razred UČENCI
B1: = Izvedba 1. tekme | D1: Rezultati 1. tekme
B2: = Izvedba 2. tekme | D2: Rezultati 2. tekme
D3: Končni rezultati
C6: ORGANIZATOR NSK TRŽIČ FMG | K6: Vrednost dolžine skoka: | Q6: 1 m = 6 točk | Z6: Vrednost dolžine skoka: | AF6: 1 m = 6 točk
K7: Rezultat se ob podrsu zmanjša za: | Q7: 3 TOČKE | Z7: Rezultat se ob podrsu zmanjša za: | AF7: 3 TOČKE
A8: ODPRTO ŠOLSKO PRVENSTVO V SMUČARSKIH SKOKIH ZA ŠOLSKO LETO 2016/17 | K8: Rezultat se ob padcu zmanjša za: | Q8: 6 TOČK | Z8: Rezultat se ob padcu zmanjša za: | AF8: 6 TOČK
A9: V skupni seštevek se upoštevata točkovno najboljša dva skoka
A10: V primeru delitve mesta, se za razvrstitev šteje dolžina najdalšega skoka in nato še tisti skok, ki ni bil upoštevan v seštevek za končno število točk.
A12: REZULTATI | E12: Tržič 19.1.2017 | T12: Tržič 16.2.2017 | AI12: Tržič 19.1.2017 | AQ12: Tržič 16.2.2017
B13: DEČKI | D13: 4. in 5. RAZRED | E13: Dolžina skoka | H13: Odbitki doskoka | K13: Točk skok + doskok | O13: 1. | P13: 2. | Q13: Skupaj | R13: Št. | T13: Dolžina skoka | W13: Odbitki doskoka | Z13: Točk skok + doskok | AD13: 1. | AE13: 2. | AF13: Skupaj | AG13: Št. | AI13: Točk skok + doskok | AM13: 1. | AN13: 2. | AO13: Točk | AQ13: Točk skok + doskok | AU13: 1. | AV13: 2. | AW13: Točk | AY13: Naj | AZ13: Končno
A14: Mesto | B14: Ime in priimek | C14: Letnik | D14: Osnovna šola | E14: 1.SK. | F14: 2.SK. | G14: 3.SK. | H14: 1.SK. | I14: 2.SK. | J14: 3.SK. | K14: 1.SK. | L14: 2.SK. | M14: 3.SK. | O14: boljši | P14: boljši | Q14: št. točk | R14: štev. | T14: 1.SK. | U14: 2.SK. | V14: 3.SK. | W14: 1.SK. | X14: 2.SK. | Y14: 3.SK. | Z14: 1.SK. | AA14: 2.SK. | AB14: 3.SK. | AD14: boljši | AE14: boljši | AF14: št. točk | AG14: štev. | AI14: 1.SK. | AJ14: 2.SK. | AK14: 3.SK. | AM14: boljši | AN14: boljši | AO14: 19.01. | AQ14: 1.SK. | AR14: 2.SK. | AS14: 3.SK. | AU14: boljši | AV14: boljši | AW14: 16.02. | AY14: skok | AZ14: št. točk
A15: 1 | B15: ='STARTNA LISTA 4 in 5'!$B$9 -> MATIC SOKLIČ | C15: ='STARTNA LISTA 4 in 5'!$C$9 -> 2006 | D15: ='STARTNA LISTA 4 in 5'!$D$9 -> TRŽIČ | E15: 3.5 | F15: 3.5 | G15: 3.75 | K15: =IF(E15>0,+E15*6-H15,"") -> 21 | L15: =IF(F15>0,+F15*6-I15,"") -> 21 | M15: =IF(G15>0,+G15*6-J15,"") -> 22.5 | N15: =SUM(K15:M15) -> 64.5 | O15: =IF(N15>0,LARGE(K15:M15,1),"") -> 22.5 | P15: =IF(N15>0,LARGE(K15:M15,2),"") -> 21 | Q15: =IF(N15>0,+O15+P15,0) -> 43.5 | R15: ='STARTNA LISTA 4 in 5'!$A$9 -> 45 | T15: 5 | U15: 5.25 | V15: 5.25 | Z15: =IF(T15>0,+T15*6-W15,"") -> 30 | AA15: =IF(U15>0,+U15*6-X15,"") -> 31.5 | AB15: =IF(V15>0,+V15*6-Y15,"") -> 31.5 | AC15: =SUM(Z15:AB15) -> 93 | AD15: =IF(AC15>0,LARGE(Z15:AB15,1),"") -> 31.5 | AE15: =IF(AC15>0,LARGE(Z15:AB15,2),"") -> 31.5 | AF15: =IF(AC15>0,+AD15+AE15,0) -> 63 | AG15: ='STARTNA LISTA 4 in 5'!$A$9 -> 45 | AI15: =IF(K15>0,K15,"") -> 21 | AJ15: =IF(L15>0,L15,"") -> 21 | AK15: =IF(M15>0,M15,"") -> 22.5 | AL15: =N15 -> 64.5 | AM15: =IF(O15>0,O15,"") -> 22.5 | AN15: =IF(P15>0,P15,"") -> 21 | AO15: =IF(Q15>0,Q15,"") -> 43.5 | AQ15: =IF(Z15>0,Z15,"") -> 30 | AR15: =IF(AA15>0,AA15,"") -> 31.5 | AS15: =IF(AB15>0,AB15,"") -> 31.5 | AT15: =AC15 -> 93 | AU15: =IF(AD15>0,AD15,"") -> 31.5 | AV15: =IF(AE15>0,AE15,"") -> 31.5 | AW15: =IF(AF15>0,AF15,"") -> 63 | AY15: =IF((AL15+AT15)>0,MAX(AM15,AU15),"") -> 31.5 | AZ15: =(IF(AW15="",0,AW15)+IF(AO15="",0,AO15)) -> 106.5
A16: 2 | B16: ='STARTNA LISTA 4 in 5'!$B$11 -> MAJ FROLICH | C16: ='STARTNA LISTA 4 in 5'!$C$11 -> 2006 | D16: ='STARTNA LISTA 4 in 5'!$D$11 -> TRŽIČ, POD. | E16: 3.75 | F16: 3.75 | G16: 4 | K16: 22.5 | L16: 22.5 | M16: 24 | N16: 69 | O16: 24 | P16: 22.5 | Q16: 46.5 | R16: ='STARTNA LISTA 4 in 5'!$A$11 -> 47 | T16: 5 | U16: 5.25 | V16: 5 | Z16: 30 | AA16: 31.5 | AB16: 30 | AC16: 91.5 | AD16: 31.5 | AE16: 30 | AF16: 61.5 | AG16: ='STARTNA LISTA 4 in 5'!$A$11 -> 47 | AI16: 22.5 | AJ16: 22.5 | AK16: 24 | AL16: 69 | AM16: 24 | AN16: 22.5 | AO16: 46.5 | AQ16: 30 | AR16: 31.5 | AS16: 30 | AT16: 91.5 | AU16: 31.5 | AV16: 30 | AW16: 61.5 | AY16: 31.5 | AZ16: 108
A17: 3 | B17: ='STARTNA LISTA 4 in 5'!$B$10 -> MAJ SOKLIČ | C17: ='STARTNA LISTA 4 in 5'!$C$10 -> 2006 | D17: ='STARTNA LISTA 4 in 5'!$D$10 -> TRŽIČ | E17: 4 | F17: 4 | G17: 4 | K17: 24 | L17: 24 | M17: 24 | N17: 72 | O17: 24 | P17: 24 | Q17: 48 | R17: ='STARTNA LISTA 4 in 5'!$A$10 -> 46 | T17: 4.5 | U17: 4.75 | V17: 4.75 | Z17: 27 | AA17: 28.5 | AB17: 28.5 | AC17: 84 | AD17: 28.5 | AE17: 28.5 | AF17: 57 | AG17: ='STARTNA LISTA 4 in 5'!$A$10 -> 46 | AI17: 24 | AJ17: 24 | AK17: 24 | AL17: 72 | AM17: 24 | AN17: 24 | AO17: 48 | AQ17: 27 | AR17: 28.5 | AS17: 28.5 | AT17: 84 | AU17: 28.5 | AV17: 28.5 | AW17: 57 | AY17: 28.5 | AZ17: 105
A18: 4 | B18: ='STARTNA LISTA 4 in 5'!$B$17 -> MATEVŽ GRAŠIČ | C18: ='STARTNA LISTA 4 in 5'!$C$17 -> 2007 | D18: ='STARTNA LISTA 4 in 5'!$D$17 -> KRIŽE | E18: 3.25 | F18: 3.25 | G18: 3.75 | K18: 19.5 | L18: 19.5 | M18: 22.5 | N18: 61.5 | O18: 22.5 | P18: 19.5 | Q18: 42 | R18: ='STARTNA LISTA 4 in 5'!$A$17 -> 53 | T18: 4.5 | U18: 4.75 | V18: 4.75 | Z18: 27 | AA18: 28.5 | AB18: 28.5 | AC18: 84 | AD18: 28.5 | AE18: 28.5 | AF18: 57 | AG18: ='STARTNA LISTA 4 in 5'!$A$17 -> 53 | AI18: 19.5 | AJ18: 19.5 | AK18: 22.5 | AL18: 61.5 | AM18: 22.5 | AN18: 19.5 | AO18: 42 | AQ18: 27 | AR18: 28.5 | AS18: 28.5 | AT18: 84 | AU18: 28.5 | AV18: 28.5 | AW18: 57 | AY18: 28.5 | AZ18: 99
A19: 5 | B19: ='STARTNA LISTA 4 in 5'!$B$15 -> DAVID MEGLIČ | C19: ='STARTNA LISTA 4 in 5'!$C$15 -> 2007 | D19: ='STARTNA LISTA 4 in 5'!$D$15 -> BISTRICA | E19: 2.75 | F19: 3 | G19: 3 | K19: 16.5 | L19: 18 | M19: 18 | N19: 52.5 | O19: 18 | P19: 18 | Q19: 36 | R19: ='STARTNA LISTA 4 in 5'!$A$15 -> 51 | T19: 4.25 | U19: 4.75 | V19: 4.75 | Z19: 25.5 | AA19: 28.5 | AB19: 28.5 | AC19: 82.5 | AD19: 28.5 | AE19: 28.5 | AF19: 57 | AG19: ='STARTNA LISTA 4 in 5'!$A$15 -> 51 | AI19: 16.5 | AJ19: 18 | AK19: 18 | AL19: 52.5 | AM19: 18 | AN19: 18 | AO19: 36 | AQ19: 25.5 | AR19: 28.5 | AS19: 28.5 | AT19: 82.5 | AU19: 28.5 | AV19: 28.5 | AW19: 57 | AY19: 28.5 | AZ19: 93
A20: 6 | B20: ='STARTNA LISTA 4 in 5'!$B$13 -> GAŠPER ČERNILEC | C20: ='STARTNA LISTA 4 in 5'!$C$13 -> 2007 | D20: ='STARTNA LISTA 4 in 5'!$D$13 -> TRŽIČ, POD. | E20: 3.75 | F20: 3.5 | G20: 3.5 | K20: 22.5 | L20: 21 | M20: 21 | N20: 64.5 | O20: 22.5 | P20: 21 | Q20: 43.5 | R20: ='STARTNA LISTA 4 in 5'!$A$13 -> 49 | T20: 4.5 | U20: 3.5 | V20: 4.5 | Z20: 27 | AA20: 21 | AB20: 27 | AC20: 75 | AD20: 27 | AE20: 27 | AF20: 54 | AG20: ='STARTNA LISTA 4 in 5'!$A$13 -> 49 | AI20: 22.5 | AJ20: 21 | AK20: 21 | AL20: 64.5 | AM20: 22.5 | AN20: 21 | AO20: 43.5 | AQ20: 27 | AR20: 21 | AS20: 27 | AT20: 75 | AU20: 27 | AV20: 27 | AW20: 54 | AY20: 27 | AZ20: 97.5
A21: 7 | B21: ='STARTNA LISTA 4 in 5'!$B$16 -> URH ŽOS | C21: ='STARTNA LISTA 4 in 5'!$C$16 -> 2007 | D21: ='STARTNA LISTA 4 in 5'!$D$16 -> BISTRICA | E21: 2.75 | F21: 2.25 | G21: 3 | K21: 16.5 | L21: 13.5 | M21: 18 | N21: 48 | O21: 18 | P21: 16.5 | Q21: 34.5 | R21: ='STARTNA LISTA 4 in 5'!$A$16 -> 52 | T21: 3.75 | U21: 4 | V21: 4.25 | Z21: 22.5 | AA21: 24 | AB21: 25.5 | AC21: 72 | AD21: 25.5 | AE21: 24 | AF21: 49.5 | AG21: ='STARTNA LISTA 4 in 5'!$A$16 -> 52 | AI21: 16.5 | AJ21: 13.5 | AK21: 18 | AL21: 48 | AM21: 18 | AN21: 16.5 | AO21: 34.5 | AQ21: 22.5 | AR21: 24 | AS21: 25.5 | AT21: 72 | AU21: 25.5 | AV21: 24 | AW21: 49.5 | AY21: 25.5 | AZ21: 84
A22: 8 | B22: ='STARTNA LISTA 4 in 5'!$B$8 -> ALEN HADŽIĆ | C22: ='STARTNA LISTA 4 in 5'!$C$8 -> 2006 | D22: ='STARTNA LISTA 4 in 5'!$D$8 -> TRŽIČ | E22: 2.5 | F22: 2.75 | G22: 3 | K22: 15 | L22: 16.5 | M22: 18 | N22: 49.5 | O22: 18 | P22: 16.5 | Q22: 34.5 | R22: ='STARTNA LISTA 4 in 5'!$A$8 -> 44 | T22: 3.25 | U22: 3.75 | V22: 3.75 | Z22: 19.5 | AA22: 22.5 | AB22: 22.5 | AC22: 64.5 | AD22: 22.5 | AE22: 22.5 | AF22: 45 | AG22: ='STARTNA LISTA 4 in 5'!$A$8 -> 44 | AI22: 15 | AJ22: 16.5 | AK22: 18 | AL22: 49.5 | AM22: 18 | AN22: 16.5 | AO22: 34.5 | AQ22: 19.5 | AR22: 22.5 | AS22: 22.5 | AT22: 64.5 | AU22: 22.5 | AV22: 22.5 | AW22: 45 | AY22: 22.5 | AZ22: 79.5
A23: 9 | B23: ='STARTNA LISTA 4 in 5'!$B$4 -> OŽBEJ BELHAR | C23: ='STARTNA LISTA 4 in 5'!$C$4 -> 2007 | D23: ='STARTNA LISTA 4 in 5'!$D$4 -> TRŽIČ | E23: 2 | F23: 2.25 | G23: 2.75 | K23: 12 | L23: 13.5 | M23: 16.5 | N23: 42 | O23: 16.5 | P23: 13.5 | Q23: 30 | R23: ='STARTNA LISTA 4 in 5'!$A$4 -> 80 | T23: 2 | U23: 2.75 | V23: 3 | Z23: 12 | AA23: 16.5 | AB23: 18 | AC23: 46.5 | AD23: 18 | AE23: 16.5 | AF23: 34.5 | AG23: ='STARTNA LISTA 4 in 5'!$A$4 -> 80 | AI23: 12 | AJ23: 13.5 | AK23: 16.5 | AL23: 42 | AM23: 16.5 | AN23: 13.5 | AO23: 30 | AQ23: 12 | AR23: 16.5 | AS23: 18 | AT23: 46.5 | AU23: 18 | AV23: 16.5 | AW23: 34.5 | AY23: 18 | AZ23: 64.5
A24: 10 | B24: ='STARTNA LISTA 4 in 5'!$B$6 -> ANEJ PAPLER | C24: ='STARTNA LISTA 4 in 5'!$C$6 -> 2006 | D24: ='STARTNA LISTA 4 in 5'!$D$6 -> TRŽIČ | E24: 3.25 | F24: 3.75 | G24: 3.5 | J24: 3 | K24: 19.5 | L24: 22.5 | M24: 18 | N24: 60 | O24: 22.5 | P24: 19.5 | Q24: 42 | R24: ='STARTNA LISTA 4 in 5'!$A$6 -> 42 | AC24: 0 | AF24: 0 | AG24: ='STARTNA LISTA 4 in 5'!$A$6 -> 42 | AI24: 19.5 | AJ24: 22.5 | AK24: 18 | AL24: 60 | AM24: 22.5 | AN24: 19.5 | AO24: 42 | AT24: 0 | AY24: 22.5 | AZ24: 42
A25: 11 | B25: ='STARTNA LISTA 4 in 5'!$B$18 -> LUKA SKODLAR | C25: ='STARTNA LISTA 4 in 5'!$C$18 -> 2006 | D25: ='STARTNA LISTA 4 in 5'!$D$18 -> NAKLO POD. | E25: 3.25 | F25: 3.5 | G25: 3.5 | K25: 19.5 | L25: 21 | M25: 21 | N25: 61.5 | O25: 21 | P25: 21 | Q25: 42 | R25: ='STARTNA LISTA 4 in 5'!$A$18 -> 54 | AC25: 0 | AF25: 0 | AG25: ='STARTNA LISTA 4 in 5'!$A$18 -> 54 | AI25: 19.5 | AJ25: 21 | AK25: 21 | AL25: 61.5 | AM25: 21 | AN25: 21 | AO25: 42 | AT25: 0 | AY25: 21 | AZ25: 42
A26: 12 | B26: ='STARTNA LISTA 4 in 5'!$B$19 -> AME KOZJEK | C26: ='STARTNA LISTA 4 in 5'!$C$19 -> 2006 | D26: ='STARTNA LISTA 4 in 5'!$D$19 -> NAKLO POD. | E26: 3.5 | F26: 3.5 | G26: 3.25 | K26: 21 | L26: 21 | M26: 19.5 | N26: 61.5 | O26: 21 | P26: 21 | Q26: 42 | R26: ='STARTNA LISTA 4 in 5'!$A$19 -> 55 | AC26: 0 | AF26: 0 | AG26: ='STARTNA LISTA 4 in 5'!$A$19 -> 55 | AI26: 21 | AJ26: 21 | AK26: 19.5 | AL26: 61.5 | AM26: 21 | AN26: 21 | AO26: 42 | AT26: 0 | AY26: 21 | AZ26: 42
A27: 13 | B27: ='STARTNA LISTA 4 in 5'!$B$5 -> KRISTJAN R.ZUPANČIČ | C27: ='STARTNA LISTA 4 in 5'!$C$5 -> 2007 | D27: ='STARTNA LISTA 4 in 5'!$D$5 -> TRŽIČ | E27: 3.5 | F27: 3.25 | G27: 3 | K27: 21 | L27: 19.5 | M27: 18 | N27: 58.5 | O27: 21 | P27: 19.5 | Q27: 40.5 | R27: ='STARTNA LISTA 4 in 5'!$A$5 -> 41 | AC27: 0 | AF27: 0 | AG27: ='STARTNA LISTA 4 in 5'!$A$5 -> 41 | AI27: 21 | AJ27: 19.5 | AK27: 18 | AL27: 58.5 | AM27: 21 | AN27: 19.5 | AO27: 40.5 | AT27: 0 | AY27: 21 | AZ27: 40.5
A28: 14 | B28: ='STARTNA LISTA 4 in 5'!$B$22 -> MARK AHČIN | C28: ='STARTNA LISTA 4 in 5'!$C$22 -> 2007 | D28: ='STARTNA LISTA 4 in 5'!$D$22 -> KRIŽE | E28: 2.75 | F28: 3.5 | G28: 3.25 | K28: 16.5 | L28: 21 | M28: 19.5 | N28: 57 | O28: 21 | P28: 19.5 | Q28: 40.5 | R28: ='STARTNA LISTA 4 in 5'!$A$22 -> 58 | AC28: 0 | AF28: 0 | AG28: ='STARTNA LISTA 4 in 5'!$A$22 -> 58 | AI28: 16.5 | AJ28: 21 | AK28: 19.5 | AL28: 57 | AM28: 21 | AN28: 19.5 | AO28: 40.5 | AT28: 0 | AY28: 21 | AZ28: 40.5
A29: 15 | B29: ='STARTNA LISTA 4 in 5'!$B$7 -> VENO BAJAZET | C29: ='STARTNA LISTA 4 in 5'!$C$7 -> 2006 | D29: ='STARTNA LISTA 4 in 5'!$D$7 -> TRŽIČ | E29: 3.25 | F29: 3.5 | G29: 3.25 | K29: 19.5 | L29: 21 | M29: 19.5 | N29: 60 | O29: 21 | P29: 19.5 | Q29: 40.5 | R29: ='STARTNA LISTA 4 in 5'!$A$7 -> 83 | AC29: 0 | AF29: 0 | AG29: ='STARTNA LISTA 4 in 5'!$A$7 -> 83 | AI29: 19.5 | AJ29: 21 | AK29: 19.5 | AL29: 60 | AM29: 21 | AN29: 19.5 | AO29: 40.5 | AT29: 0 | AY29: 21 | AZ29: 40.5
A30: 16 | B30: ='STARTNA LISTA 4 in 5'!$B$14 -> LOVRO GAL JANC | C30: ='STARTNA LISTA 4 in 5'!$C$14 -> 2007 | D30: ='STARTNA LISTA 4 in 5'!$D$14 -> TRŽIČ, POD. | E30: 3.25 | F30: 3.25 | G30: 3.75 | J30: 3 | K30: 19.5 | L30: 19.5 | M30: 19.5 | N30: 58.5 | O30: 19.5 | P30: 19.5 | Q30: 39 | R30: ='STARTNA LISTA 4 in 5'!$A$14 -> 50 | AC30: 0 | AF30: 0 | AG30: ='STARTNA LISTA 4 in 5'!$A$14 -> 50 | AI30: 19.5 | AJ30: 19.5 | AK30: 19.5 | AL30: 58.5 | AM30: 19.5 | AN30: 19.5 | AO30: 39 | AT30: 0 | AY30: 19.5 | AZ30: 39
A31: 17 | B31: ='STARTNA LISTA 4 in 5'!$B$20 -> GAL MIHELIČ | C31: ='STARTNA LISTA 4 in 5'!$C$20 -> 2006 | D31: ='STARTNA LISTA 4 in 5'!$D$20 -> NAKLO POD. | E31: 2 | F31: 3 | G31: 2.75 | K31: 12 | L31: 18 | M31: 16.5 | N31: 46.5 | O31: 18 | P31: 16.5 | Q31: 34.5 | R31: ='STARTNA LISTA 4 in 5'!$A$20 -> 56 | AC31: 0 | AF31: 0 | AG31: ='STARTNA LISTA 4 in 5'!$A$20 -> 56 | AI31: 12 | AJ31: 18 | AK31: 16.5 | AL31: 46.5 | AM31: 18 | AN31: 16.5 | AO31: 34.5 | AT31: 0 | AY31: 18 | AZ31: 34.5
A32: 18 | B32: ='STARTNA LISTA 4 in 5'!$B$21 -> URBAN KUKOVIČ | C32: ='STARTNA LISTA 4 in 5'!$C$21 -> 2006 | D32: ='STARTNA LISTA 4 in 5'!$D$21 -> BISTRICA | E32: 2.75 | F32: 2.75 | G32: 2.75 | K32: 16.5 | L32: 16.5 | M32: 16.5 | N32: 49.5 | O32: 16.5 | P32: 16.5 | Q32: 33 | R32: ='STARTNA LISTA 4 in 5'!$A$21 -> 57 | AC32: 0 | AF32: 0 | AG32: ='STARTNA LISTA 4 in 5'!$A$21 -> 57 | AI32: 16.5 | AJ32: 16.5 | AK32: 16.5 | AL32: 49.5 | AM32: 16.5 | AN32: 16.5 | AO32: 33 | AT32: 0 | AY32: 16.5 | AZ32: 33
A33: 19 | B33: ='STARTNA LISTA 4 in 5'!$B$12 ->  | C33: ='STARTNA LISTA 4 in 5'!$C$12 ->  | D33: ='STARTNA LISTA 4 in 5'!$D$12 ->  | N33: 0 | Q33: 0 | R33: ='STARTNA LISTA 4 in 5'!$A$12 ->  | AC33: 0 | AF33: 0 | AG33: ='STARTNA LISTA 4 in 5'!$A$12 ->  | AL33: 0 | AT33: 0 | AZ33: 0
A34: 20 | B34: ='STARTNA LISTA 4 in 5'!$B$23 ->  | C34: ='STARTNA LISTA 4 in 5'!$C$23 ->  | D34: ='STARTNA LISTA 4 in 5'!$D$23 ->  | N34: 0 | Q34: 0 | R34: ='STARTNA LISTA 4 in 5'!$A$23 ->  | AC34: 0 | AF34: 0 | AG34: ='STARTNA LISTA 4 in 5'!$A$23 ->  | AL34: 0 | AT34: 0 | AZ34: 0

Sheet 4. in 5. razred UČENKE
B1: = Izvedba 1. tekme | D1: Rezultati 1. tekme
B2: = Izvedba 2. tekme | D2: Rezultati 2. tekme
D3: Končni rezultati
C6: ORGANIZATOR NSK TRŽIČ FMG | K6: Vrednost dolžine skoka: | Q6: 1 m = 6 točk | Z6: Vrednost dolžine skoka: | AF6: 1 m = 6 točk
K7: Rezultat se ob podrsu zmanjša za: | Q7: 3 TOČKE | Z7: Rezultat se ob podrsu zmanjša za: | AF7: 3 TOČKE
A8: ODPRTO ŠOLSKO PRVENSTVO V SMUČARSKIH SKOKIH ZA ŠOLSKO LETO 2016/17 | K8: Rezultat se ob padcu zmanjša za: | Q8: 6 TOČK | Z8: Rezultat se ob padcu zmanjša za: | AF8: 6 TOČK
A9: V skupni seštevek se upoštevata točkovno najboljša dva skoka
A10: V primeru delitve mesta, se za razvrstitev šteje dolžina najdalšega skoka in nato še tisti skok, ki ni bil upoštevan v seštevek za končno število točk.
A12: REZULTATI | E12: Tržič 19.1.2017 | T12: Tržič 16.2.2017 | AI12: Tržič 19.1.2017 | AQ12: Tržič 16.2.2017
B13: DEKLICE | D13: 4. in 5. RAZRED | E13: Dolžina skoka | H13: Odbitki doskoka | K13: Točk skok + doskok | O13: 1. | P13: 2. | Q13: Skupaj | R13: Št. | T13: Dolžina skoka | W13: Odbitki doskoka | Z13: Točk skok + doskok | AD13: 1. | AE13: 2. | AF13: Skupaj | AG13: Št. | AI13: Točk skok + doskok | AM13: 1. | AN13: 2. | AO13: Točk | AQ13: Točk skok + doskok | AU13: 1. | AV13: 2. | AW13: Točk | AY13: Naj | AZ13: Končno
A14: Mesto | B14: Ime in priimek | C14: Letnik | D14: Osnovna šola | E14: 1.SK. | F14: 2.SK. | G14: 3.SK. | H14: 1.SK. | I14: 2.SK. | J14: 3.SK. | K14: 1.SK. | L14: 2.SK. | M14: 3.SK. | O14: boljši | P14: boljši | Q14: št. točk | R14: štev. | T14: 1.SK. | U14: 2.SK. | V14: 3.SK. | W14: 1.SK. | X14: 2.SK. | Y14: 3.SK. | Z14: 1.SK. | AA14: 2.SK. | AB14: 3.SK. | AD14: boljši | AE14: boljši | AF14: št. točk | AG14: štev. | AI14: 1.SK. | AJ14: 2.SK. | AK14: 3.SK. | AM14: boljši | AN14: boljši | AO14: 19.01. | AQ14: 1.SK. | AR14: 2.SK. | AS14: 3.SK. | AU14: boljši | AV14: boljši | AW14: 16.02. | AY14: skok | AZ14: št. točk
A15: 1 | B15: ='STARTNA LISTA 4 in 5'!$B$40 -> ULLA KAVČIČ | C15: ='STARTNA LISTA 4 in 5'!$C$40 -> 2006 | D15: ='STARTNA LISTA 4 in 5'!$D$40 -> BISTRICA | E15: 3 | F15: 3 | G15: 3.25 | K15: =IF(E15>0,+E15*6-H15,"") -> 18 | L15: =IF(F15>0,+F15*6-I15,"") -> 18 | M15: =IF(G15>0,+G15*6-J15,"") -> 19.5 | N15: =SUM(K15:M15) -> 55.5 | O15: =IF(N15>0,LARGE(K15:M15,1),"") -> 19.5 | P15: =IF(N15>0,LARGE(K15:M15,2),"") -> 18 | Q15: =IF(N15>0,+O15+P15,0) -> 37.5 | R15: ='STARTNA LISTA 4 in 5'!$A$40 -> 68 | T15: 4.5 | U15: 4.25 | V15: 4.25 | Z15: =IF(T15>0,+T15*6-W15,"") -> 27 | AA15: =IF(U15>0,+U15*6-X15,"") -> 25.5 | AB15: =IF(V15>0,+V15*6-Y15,"") -> 25.5 | AC15: =SUM(Z15:AB15) -> 78 | AD15: =IF(AC15>0,LARGE(Z15:AB15,1),"") -> 27 | AE15: =IF(AC15>0,LARGE(Z15:AB15,2),"") -> 25.5 | AF15: =IF(AC15>0,+AD15+AE15,0) -> 52.5 | AG15: ='STARTNA LISTA 4 in 5'!$A$40 -> 68 | AI15: =IF(K15>0,K15,"") -> 18 | AJ15: =IF(L15>0,L15,"") -> 18 | AK15: =IF(M15>0,M15,"") -> 19.5 | AL15: =N15 -> 55.5 | AM15: =IF(O15>0,O15,"") -> 19.5 | AN15: =IF(P15>0,P15,"") -> 18 | AO15: =IF(Q15>0,Q15,"") -> 37.5 | AQ15: =IF(Z15>0,Z15,"") -> 27 | AR15: =IF(AA15>0,AA15,"") -> 25.5 | AS15: =IF(AB15>0,AB15,"") -> 25.5 | AT15: =AC15 -> 78 | AU15: =IF(AD15>0,AD15,"") -> 27 | AV15: =IF(AE15>0,AE15,"") -> 25.5 | AW15: =IF(AF15>0,AF15,"") -> 52.5 | AY15: =IF((AL15+AT15)>0,MAX(AM15,AU15),"") -> 27 | AZ15: =(IF(AW15="",0,AW15)+IF(AO15="",0,AO15)) -> 90
A16: 2 | B16: ='STARTNA LISTA 4 in 5'!$B$36 -> NEŽA ROŽIČ | C16: ='STARTNA LISTA 4 in 5'!$C$36 -> 2007 | D16: ='STARTNA LISTA 4 in 5'!$D$36 -> BISTRICA | E16: 2.5 | F16: 3 | G16: 3.5 | K16: 15 | L16: 18 | M16: 21 | N16: 54 | O16: 21 | P16: 18 | Q16: 39 | R16: ='STARTNA LISTA 4 in 5'!$A$36 -> 64 | T16: 3.25 | U16: 3.5 | V16: 3.75 | Z16: 19.5 | AA16: 21 | AB16: 22.5 | AC16: 63 | AD16: 22.5 | AE16: 21 | AF16: 43.5 | AG16: ='STARTNA LISTA 4 in 5'!$A$36 -> 64 | AI16: 15 | AJ16: 18 | AK16: 21 | AL16: 54 | AM16: 21 | AN16: 18 | AO16: 39 | AQ16: 19.5 | AR16: 21 | AS16: 22.5 | AT16: 63 | AU16: 22.5 | AV16: 21 | AW16: 43.5 | AY16: 22.5 | AZ16: 82.5
A17: 3 | B17: ='STARTNA LISTA 4 in 5'!$B$38 -> LUCIJA DOVŽAN | C17: ='STARTNA LISTA 4 in 5'!$C$38 -> 2007 | D17: ='STARTNA LISTA 4 in 5'!$D$38 -> KRIŽE | E17: 2.5 | F17: 3 | G17: 3.25 | K17: 15 | L17: 18 | M17: 19.5 | N17: 52.5 | O17: 19.5 | P17: 18 | Q17: 37.5 | R17: ='STARTNA LISTA 4 in 5'!$A$38 -> 66 | T17: 3.25 | U17: 3.5 | V17: 3.5 | Z17: 19.5 | AA17: 21 | AB17: 21 | AC17: 61.5 | AD17: 21 | AE17: 21 | AF17: 42 | AG17: ='STARTNA LISTA 4 in 5'!$A$38 -> 66 | AI17: 15 | AJ17: 18 | AK17: 19.5 | AL17: 52.5 | AM17: 19.5 | AN17: 18 | AO17: 37.5 | AQ17: 19.5 | AR17: 21 | AS17: 21 | AT17: 61.5 | AU17: 21 | AV17: 21 | AW17: 42 | AY17: 21 | AZ17: 79.5
A18: 4 | B18: ='STARTNA LISTA 4 in 5'!$B$37 -> NECA MEGLIČ | C18: ='STARTNA LISTA 4 in 5'!$C$37 -> 2007 | D18: ='STARTNA LISTA 4 in 5'!$D$37 -> KRIŽE | E18: 2 | F18: 2.75 | G18: 2.75 | K18: 12 | L18: 16.5 | M18: 16.5 | N18: 45 | O18: 16.5 | P18: 16.5 | Q18: 33 | R18: ='STARTNA LISTA 4 in 5'!$A$37 -> 65 | T18: 3.25 | U18: 3.5 | V18: 3.25 | Z18: 19.5 | AA18: 21 | AB18: 19.5 | AC18: 60 | AD18: 21 | AE18: 19.5 | AF18: 40.5 | AG18: ='STARTNA LISTA 4 in 5'!$A$37 -> 65 | AI18: 12 | AJ18: 16.5 | AK18: 16.5 | AL18: 45 | AM18: 16.5 | AN18: 16.5 | AO18: 33 | AQ18: 19.5 | AR18: 21 | AS18: 19.5 | AT18: 60 | AU18: 21 | AV18: 19.5 | AW18: 40.5 | AY18: 21 | AZ18: 73.5
A19: 5 | B19: ='STARTNA LISTA 4 in 5'!$B$35 -> BARBARA RIBIČ | C19: ='STARTNA LISTA 4 in 5'!$C$35 -> 2007 | D19: ='STARTNA LISTA 4 in 5'!$D$35 -> BISTRICA | E19: 2.25 | F19: 1.75 | G19: 2.75 | K19: 13.5 | L19: 10.5 | M19: 16.5 | N19: 40.5 | O19: 16.5 | P19: 13.5 | Q19: 30 | R19: ='STARTNA LISTA 4 in 5'!$A$35 -> 63 | T19: 2.75 | U19: 3 | V19: 2.75 | Z19: 16.5 | AA19: 18 | AB19: 16.5 | AC19: 51 | AD19: 18 | AE19: 16.5 | AF19: 34.5 | AG19: ='STARTNA LISTA 4 in 5'!$A$35 -> 63 | AI19: 13.5 | AJ19: 10.5 | AK19: 16.5 | AL19: 40.5 | AM19: 16.5 | AN19: 13.5 | AO19: 30 | AQ19: 16.5 | AR19: 18 | AS19: 16.5 | AT19: 51 | AU19: 18 | AV19: 16.5 | AW19: 34.5 | AY19: 18 | AZ19: 64.5
A20: 6 | B20: ='STARTNA LISTA 4 in 5'!$B$34 -> ZOJA ŠORN VESEL | C20: ='STARTNA LISTA 4 in 5'!$C$34 -> 2007 | D20: ='STARTNA LISTA 4 in 5'!$D$34 -> TRŽIČ | E20: 1.75 | F20: 2.5 | G20: 2 | K20: 10.5 | L20: 15 | M20: 12 | N20: 37.5 | O20: 15 | P20: 12 | Q20: 27 | R20: ='STARTNA LISTA 4 in 5'!$A$34 -> 62 | T20: 2.5 | U20: 3 | V20: 3 | Z20: 15 | AA20: 18 | AB20: 18 | AC20: 51 | AD20: 18 | AE20: 18 | AF20: 36 | AG20: ='STARTNA LISTA 4 in 5'!$A$34 -> 62 | AI20: 10.5 | AJ20: 15 | AK20: 12 | AL20: 37.5 | AM20: 15 | AN20: 12 | AO20: 27 | AQ20: 15 | AR20: 18 | AS20: 18 | AT20: 51 | AU20: 18 | AV20: 18 | AW20: 36 | AY20: 18 | AZ20: 63
A21: 7 | B21: ='STARTNA LISTA 4 in 5'!$B$33 -> SARA OBRADOVIČ | C21: ='STARTNA LISTA 4 in 5'!$C$33 -> 2007 | D21: ='STARTNA LISTA 4 in 5'!$D$33 -> TRŽIČ | E21: 1.25 | F21: 1.5 | G21: 1.75 | K21: 7.5 | L21: 9 | M21: 10.5 | N21: 27 | O21: 10.5 | P21: 9 | Q21: 19.5 | R21: ='STARTNA LISTA 4 in 5'!$A$33 -> 61 | T21: 2.25 | U21: 2.5 | V21: 2.5 | Z21: 13.5 | AA21: 15 | AB21: 15 | AC21: 43.5 | AD21: 15 | AE21: 15 | AF21: 30 | AG21: ='STARTNA LISTA 4 in 5'!$A$33 -> 61 | AI21: 7.5 | AJ21: 9 | AK21: 10.5 | AL21: 27 | AM21: 10.5 | AN21: 9 | AO21: 19.5 | AQ21: 13.5 | AR21: 15 | AS21: 15 | AT21: 43.5 | AU21: 15 | AV21: 15 | AW21: 30 | AY21: 15 | AZ21: 49.5
A22: 8 | B22: ='STARTNA LISTA 4 in 5'!$B$41 -> EVA JERMAN | C22: ='STARTNA LISTA 4 in 5'!$C$41 -> 2007 | D22: ='STARTNA LISTA 4 in 5'!$D$41 -> BISTRICA | N22: 0 | Q22: 0 | R22: ='STARTNA LISTA 4 in 5'!$A$41 -> 69 | T22: 3.75 | U22: 3.75 | V22: 4 | Z22: 22.5 | AA22: 22.5 | AB22: 24 | AC22: 69 | AD22: 24 | AE22: 22.5 | AF22: 46.5 | AG22: ='STARTNA LISTA 4 in 5'!$A$41 -> 69 | AL22: 0 | AQ22: 22.5 | AR22: 22.5 | AS22: 24 | AT22: 69 | AU22: 24 | AV22: 22.5 | AW22: 46.5 | AY22: 24 | AZ22: 46.5
A23: 9 | B23: ='STARTNA LISTA 4 in 5'!$B$42 -> ANA TIŠLER | C23: ='STARTNA LISTA 4 in 5'!$C$42 -> 2007 | D23: ='STARTNA LISTA 4 in 5'!$D$42 -> POŠ LOM | N23: 0 | Q23: 0 | R23: ='STARTNA LISTA 4 in 5'!$A$42 -> 70 | T23: 4 | U23: 3.75 | V23: 3.75 | Z23: 24 | AA23: 22.5 | AB23: 22.5 | AC23: 69 | AD23: 24 | AE23: 22.5 | AF23: 46.5 | AG23: ='STARTNA LISTA 4 in 5'!$A$42 -> 70 | AL23: 0 | AQ23: 24 | AR23: 22.5 | AS23: 22.5 | AT23: 69 | AU23: 24 | AV23: 22.5 | AW23: 46.5 | AY23: 24 | AZ23: 46.5
A24: 10 | B24: ='STARTNA LISTA 4 in 5'!$B$32 -> AJDA JUGOVIC | C24: ='STARTNA LISTA 4 in 5'!$C$32 -> 2007 | D24: ='STARTNA LISTA 4 in 5'!$D$32 -> TRŽIČ | E24: 1.75 | F24: 2 | G24: 1.75 | K24: 10.5 | L24: 12 | M24: 10.5 | N24: 33 | O24: 12 | P24: 10.5 | Q24: 22.5 | R24: ='STARTNA LISTA 4 in 5'!$A$32 -> 60 | AC24: 0 | AF24: 0 | AG24: ='STARTNA LISTA 4 in 5'!$A$32 -> 60 | AI24: 10.5 | AJ24: 12 | AK24: 10.5 | AL24: 33 | AM24: 12 | AN24: 10.5 | AO24: 22.5 | AT24: 0 | AY24: 12 | AZ24: 22.5
A25: 11 | B25: ='STARTNA LISTA 4 in 5'!$B$39 ->  | C25: ='STARTNA LISTA 4 in 5'!$C$39 ->  | D25: ='STARTNA LISTA 4 in 5'!$D$39 ->  | N25: 0 | Q25: 0 | R25: ='STARTNA LISTA 4 in 5'!$A$39 ->  | AC25: 0 | AF25: 0 | AG25: ='STARTNA LISTA 4 in 5'!$A$39 ->  | AL25: 0 | AT25: 0 | AZ25: 0
A26: 12 | B26: ='STARTNA LISTA 4 in 5'!$B$43 ->  | C26: ='STARTNA LISTA 4 in 5'!$C$43 ->  | D26: ='STARTNA LISTA 4 in 5'!$D$43 ->  | N26: 0 | Q26: 0 | R26: ='STARTNA LISTA 4 in 5'!$A$43 ->  | AC26: 0 | AF26: 0 | AG26: ='STARTNA LISTA 4 in 5'!$A$43 ->  | AL26: 0 | AT26: 0 | AZ26: 0
A27: 13 | B27: ='STARTNA LISTA 4 in 5'!$B$44 ->  | C27: ='STARTNA LISTA 4 in 5'!$C$44 ->  | D27: ='STARTNA LISTA 4 in 5'!$D$44 ->  | N27: 0 | Q27: 0 | R27: ='STARTNA LISTA 4 in 5'!$A$44 ->  | AC27: 0 | AF27: 0 | AG27: ='STARTNA LISTA 4 in 5'!$A$44 ->  | AL27: 0 | AT27: 0 | AZ27: 0
A28: 14 | B28: ='STARTNA LISTA 4 in 5'!$B$45 ->  | C28: ='STARTNA LISTA 4 in 5'!$C$45 ->  | D28: ='STARTNA LISTA 4 in 5'!$D$45 ->  | N28: 0 | Q28: 0 | R28: ='STARTNA LISTA 4 in 5'!$A$45 ->  | AC28: 0 | AF28: 0 | AG28: ='STARTNA LISTA 4 in 5'!$A$45 ->  | AL28: 0 | AT28: 0 | AZ28: 0
A29: 15 | B29: ='STARTNA LISTA 4 in 5'!$B$46 ->  | C29: ='STARTNA LISTA 4 in 5'!$C$46 ->  | D29: ='STARTNA LISTA 4 in 5'!$D$46 ->  | N29: 0 | Q29: 0 | R29: ='STARTNA LISTA 4 in 5'!$A$46 ->  | AC29: 0 | AF29: 0 | AG29: ='STARTNA LISTA 4 in 5'!$A$46 ->  | AL29: 0 | AT29: 0 | AZ29: 0
A30: 16 | B30: ='STARTNA LISTA 4 in 5'!$B$47 ->  | C30: ='STARTNA LISTA 4 in 5'!$C$47 ->  | D30: ='STARTNA LISTA 4 in 5'!$D$47 ->  | N30: 0 | Q30: 0 | R30: ='STARTNA LISTA 4 in 5'!$A$47 ->  | AC30: 0 | AF30: 0 | AG30: ='STARTNA LISTA 4 in 5'!$A$47 ->  | AL30: 0 | AT30: 0 | AZ30: 0
A31: 17 | B31: ='STARTNA LISTA 4 in 5'!$B$48 ->  | C31: ='STARTNA LISTA 4 in 5'!$C$48 ->  | D31: ='STARTNA LISTA 4 in 5'!$D$48 ->  | N31: 0 | Q31: 0 | R31: ='STARTNA LISTA 4 in 5'!$A$48 ->  | AC31: 0 | AF31: 0 | AG31: ='STARTNA LISTA 4 in 5'!$A$48 ->  | AL31: 0 | AT31: 0 | AZ31: 0
A32: 18 | B32: ='STARTNA LISTA 4 in 5'!$B$49 ->  | C32: ='STARTNA LISTA 4 in 5'!$C$49 ->  | D32: ='STARTNA LISTA 4 in 5'!$D$49 ->  | N32: 0 | Q32: 0 | R32: ='STARTNA LISTA 4 in 5'!$A$49 ->  | AC32: 0 | AF32: 0 | AG32: ='STARTNA LISTA 4 in 5'!$A$49 ->  | AL32: 0 | AT32: 0 | AZ32: 0
A33: 19 | B33: ='STARTNA LISTA 4 in 5'!$B$50 ->  | C33: ='STARTNA LISTA 4 in 5'!$C$50 ->  | D33: ='STARTNA LISTA 4 in 5'!$D$50 ->  | N33: 0 | Q33: 0 | R33: ='STARTNA LISTA 4 in 5'!$A$50 ->  | AC33: 0 | AF33: 0 | AG33: ='STARTNA LISTA 4 in 5'!$A$50 ->  | AL33: 0 | AT33: 0 | AZ33: 0
A34: 20 | B34: ='STARTNA LISTA 4 in 5'!$B$51 ->  | C34: ='STARTNA LISTA 4 in 5'!$C$51 ->  | D34: ='STARTNA LISTA 4 in 5'!$D$51 ->  | N34: 0 | Q34: 0 | R34: ='STARTNA LISTA 4 in 5'!$A$51 ->  | AC34: 0 | AF34: 0 | AG34: ='STARTNA LISTA 4 in 5'!$A$51 ->  | AL34: 0 | AT34: 0 | AZ34: 0
